Cogmind - Beta 17 @@@ ROGUE MODE // 2026.07.10 @ 12:12:02 Player: Cracklepappy Result: Establishing 0b11! Performance ------------- Evolutions (9) 4500 Regions Visited (32) 6400 Robots Destroyed (244) 1220 Value Destroyed (21728) 21728 Prototype IDs (370) 7400 Alien Tech Used (1) 200 Bonus (69039) 69039 TOTAL SCORE: 110487 Bonus ------- High Alert Combat Kills 1864 Follower Combat Kills 15709 Prayed to X0-1V1 5000 Major X0-1V1 Interference 14100 Entered Garrisons 2400 Used RIF Installer 6500 Met MAIN.C 5000 Destroyed MAIN.C Shell 5000 Destroyed MAIN.C 10000 Met Architect 300 Destroyed A8 300 Win 3000 Friendly Fire -134 Cogmind --------- Core Integrity 239/1550 Matter 250/300 Energy 83/350 System Corruption 5% Temperature Cool (1) Movement Walking (174) Ox1 Location 0b11 Command Parts ------- > --- POWER (2) -------- Improved Quantum Reactor > --- PROPULSION (6) --- Enhanced Flexi-carbon Leg Experimental Biometal Leg Experimental Biometal Leg Experimental Biometal Leg Experimental Biometal Leg > --- UTILITY (16) ----- Advanced Heat Sink Cargo Storage Unit Advanced Target Analyzer Improved Armor Integrity Analyzer Relay Coupler [Behemoth] (19) Relay Coupler [Proto] (15) Experimental System Purifier Long-range Tractor Beam > --- WEAPON (2) ------- Multirail Graviton Cannon > --- INVENTORY (31) --- Zero-point Reactor Cooled Linear Gravjet Coolant Network Experimental Matter Compressor (500) Experimental Matter Compressor (500) Precision Matter Filter Experimental Thermal Shield Experimental EM Disruption Field Advanced Remote Force Field HERF Cannon Neutron Cannon Enhanced Nova Cannon Enhanced Hardcell Cannon Hypervelocity Linear Accelerator Hypervelocity Linear Accelerator Advanced Remote Datajack Peak State ------------ > --- POWER ------------ Vortex Chain Reactor > --- PROPULSION ------- Biometal Heavy Treads Enhanced Armored Heavy Treads Advanced Heavy Siege Treads > --- UTILITY ---------- Advanced Cryofiber Web Advanced Heat Sink Advanced Heat Sink Cargo Storage Unit Advanced Target Analyzer Improved Armor Integrity Analyzer Experimental Phase Shifter Layered Medium Armor Plating Thermal Barrier Experimental EM Disruption Field Advanced Force Field Relay Coupler [Behemoth] Relay Coupler [Proto] Experimental System Purifier Long-range Tractor Beam > --- WEAPON ----------- Enhanced Nova Cannon Hypervelocity Multirail > --- INVENTORY -------- Improved Quantum Reactor Zero-point Reactor Enhanced Flexi-carbon Leg Experimental Biometal Leg Experimental Biometal Leg Experimental Biometal Leg Experimental Biometal Leg Cooled Linear Gravjet Coolant Network Experimental Matter Compressor Experimental Matter Compressor Experimental Targeting Computer Precision Matter Filter Experimental Thermal Shield Experimental EM Disruption Field Advanced Remote Force Field Transdimensional Reconstructor HERF Cannon Neutron Cannon Enhanced Nova Cannon Hypervelocity Railgun Multirail Enhanced Hardcell Cannon Hypervelocity Linear Accelerator Hypervelocity Linear Accelerator Graviton Cannon Advanced Remote Datajack [Rating: 229] Favorites ----------- Power Zero-point Reactor Engine Light Ion Engine Power Core Light Nuclear Core Reactor Zero-point Reactor Propulsion Armored Heavy Treads Treads Armored Heavy Treads Leg Multireflex Exoskeleton Wheel Armored Wheel Hover Unit Antigrav System Flight Unit Flight Unit Utility Relay Coupler [Grunt] Device X0-1V1's Piety Tracker Storage Cargo Storage Unit Processor Enhanced Optical Array Hackware Relay Coupler [Grunt] Protection Advanced Powered Armor Weapon Advanced Remote Datajack Energy Gun Spread Laser Energy Cannon Enhanced Nova Cannon Ballistic Gun Heavy Assault Rifle Ballistic Cannon Enhanced Hardcell Cannon Launcher Heavy Rocket Launcher Special Weapon Advanced Remote Datajack Impact Weapon Heavy Flail Slashing Weapon Power Sword Piercing Weapon Spear Special Melee Weapon Improved Datajack Build | -11 -10 -10 -9 -9 -9 -8 -8 -8 -8 -7 -7 -7 -7 -6 -6 -5 -5 -5 -5 -4 -4 -3 -3 -2 -2 -2 -2 -1 -1 -1 -1 -1 ------- Run | Yrd Mat Min Mat Sto Gar Mat Gar Mat Gar Fac Was Fac Gar Fac Gar Fac Gar Fac Gar Fac Gar Res Gar Res Gar Res Gar Acc Gar Acc Com Ac0 Slots Evolved 18 | . . . 2 . . 2 . . . 2 . . . 2 . 2 . . . 2 . 2 . 2 . . . 2 . . . . Power . | . . . . . . . . . . . . . . . . . . . . . . . . . . . . . . . . . Propulsion 3 | . . . 2 . . . . . . . . . . . . . . . . . . . . . . . . 1 . . . . Utility 15 | . . . . . . 2 . . . 2 . . . 2 . 2 . . . 2 . 2 . 2 . . . 1 . . . . Weapon . | . . . . . . . . . . . . . . . . . . . . . . . . . . . . . . . . . Parts Attached 436 | 6 13 5 5 7 24 8 15 3 26 20 2 13 19 7 22 5 11 3 16 2 25 8 26 1 19 2 17 1 20 23 37 25 Power 63 | . 3 1 1 1 2 1 4 . 8 1 . 4 3 . 2 1 1 1 4 . 4 2 2 . 1 . 6 . 1 3 5 1 Engine 17 | . 3 1 1 1 2 . 1 . 3 . . 2 . . 1 1 . . 1 . . . . . . . . . . . . . Core 21 | . . . . . . 1 3 . 5 1 . 2 3 . 1 . 1 1 2 . 1 . . . . . . . . . . . Reactor 25 | . . . . . . . . . . . . . . . . . . . 1 . 3 2 2 . 1 . 6 . 1 3 5 1 Propulsion 85 | 2 3 2 3 2 8 3 4 . 9 5 1 3 . . 4 . 2 . 3 . 3 1 1 . 5 . 4 . 2 3 4 8 Treads 23 | 2 . . . . . . . . 3 . . . . . . . . . . . . . . . 2 . 4 . 2 3 4 3 Leg 19 | . . . . . . . . . 3 . . . . . . . 1 . 2 . 3 1 1 . 3 . . . . . . 5 Wheel 4 | . . . . 2 1 . . . . 1 . . . . . . . . . . . . . . . . . . . . . . Hover 6 | . . . . . . . . . . 3 1 . . . . . 1 . 1 . . . . . . . . . . . . . Flight 33 | . 3 2 3 . 7 3 4 . 3 1 . 3 . . 4 . . . . . . . . . . . . . . . . . Utility 189 | 2 2 . . . 2 1 3 1 4 7 1 4 7 5 11 3 8 2 8 2 18 4 18 1 9 1 6 1 14 10 26 8 Device 61 | 2 1 . . . 2 1 2 1 3 4 1 2 . 3 2 2 3 1 . . 1 1 4 1 1 . 2 1 . 4 11 5 Storage 8 | . . . . . . . . . . 2 . . 1 . 1 . . . 1 . 1 . . . 1 . . . . 1 . . Processor 9 | . . . . . . . 1 . . . . 2 . 1 . . . . . . . 1 1 . . . . . . . 2 1 Hackware 105 | . 1 . . . . . . . . 1 . . 6 1 7 1 5 1 7 2 15 2 13 . 7 1 4 . 14 4 13 . Protection 6 | . . . . . . . . . 1 . . . . . 1 . . . . . 1 . . . . . . . . 1 . 2 Artifact . | . . . . . . . . . . . . . . . . . . . . . . . . . . . . . . . . . Weapon 99 | 2 5 2 1 4 12 3 4 2 5 7 . 2 9 2 5 1 . . 1 . . 1 5 . 4 1 1 . 3 7 2 8 Energy Gun 3 | . . 1 . . 1 . . . . . . . . 1 . . . . . . . . . . . . . . . . . . Energy Cannon 9 | . . . . . . . . . . . . . . . . . . . . . . . 1 . 1 1 . . 1 1 1 3 Ballistic Gun 40 | 2 . . . 2 8 2 4 . 5 2 . 2 7 . 2 . . . . . . . . . . . . . . 1 . 3 Ballistic Cannon 15 | . 3 . 1 2 . . . 1 . 1 . . . 1 . . . . . . . . 1 . . . . . 1 2 1 1 Launcher 4 | . . . . . 1 . . 1 . . . . 1 . . . . . . . . . . . . . . . . 1 . . Special Weapon 16 | . 1 . . . 1 . . . . 1 . . 1 . 1 . . . 1 . . 1 2 . 2 . 1 . 1 2 . 1 Impact Weapon 3 | . . . . . 1 1 . . . 1 . . . . . . . . . . . . . . . . . . . . . . Slashing Weapon 4 | . . 1 . . . . . . . . . . . . 1 1 . . . . . . . . 1 . . . . . . . Piercing Weapon 2 | . . . . . . . . . . 2 . . . . . . . . . . . . . . . . . . . . . . Special Melee Weapon 3 | . 1 . . . . . . . . . . . . . 1 . . . . . . . 1 . . . . . . . . . Unidentified Prototypes 15 | . 1 . . . . 1 . . . 2 . 1 . . . 1 1 . . . . . 3 . . . . . . 5 . . Parts Lost 93 | . . . 4 1 9 . 2 . 18 . 5 . 1 . 3 2 5 . 1 . 10 1 2 . 2 . 1 . 2 . 3 21 Power 15 | . . . 1 1 . . . . 4 . 1 . . . 1 2 1 . 1 . 2 . . . . . . . . . . 1 Propulsion 21 | . . . 2 . 4 . . . 6 . 1 . . . 1 . 1 . . . 1 . . . . . . . . . . 5 Utility 37 | . . . . . 1 . 2 . 1 . 1 . . . 1 . 2 . . . 7 1 2 . 2 . 1 . 1 . 3 12 Weapon 20 | . . . 1 . 4 . . . 7 . 2 . 1 . . . 1 . . . . . . . . . . . 1 . . 3 Highest Loss Streak 15 | . . . 3 2 3 . 1 . 9 . 5 . 1 . 2 2 3 . 1 . 6 1 1 . 1 . 1 . 1 . 2 15 To Critical Strikes 2 | . . . . . . . . . . . . . . . . . . . . . . . . . . . . . . . . 2 Average Backups 19 | 3 4 5 4 5 5 5 5 4 4 6 9 6 6 5 8 11 10 11 16 19 20 20 20 19 23 28 28 28 29 29 25 24 Power . | . . . . . . . . . . . . . . . . . . . . . . . . . . . . 1 . . . 1 Propulsion 1 | . . 2 . . . 1 . . . 1 1 . . . . . . . 2 1 . . . . 1 2 2 1 1 1 1 4 Utility 13 | . . 1 1 2 1 . 1 1 1 1 3 2 1 . 4 8 8 9 12 13 13 13 14 16 19 23 23 22 23 24 15 8 Weapon 2 | 1 2 2 1 2 2 2 2 2 1 2 4 2 3 3 2 2 . . . 2 3 4 3 2 1 1 1 1 1 1 3 8 Tool/Special . | . . . . . . . . . . . . . . . . . . . . . . . . . . . . . . . . . Unused Backups 101 | . 5 1 1 . 2 4 4 . . 4 . . 4 4 3 1 2 . 11 . 5 . 4 . 4 . 3 . 8 10 12 9 Power 1 | . . . . . . . . . . . . . . . . . . . . . . . . . . . . . . . 1 . Propulsion 19 | . . 1 . . . 1 . . . 1 . . . 3 . . . . 3 . 3 . . . 2 . . . 4 . . 1 Utility 54 | . 3 . 1 . 1 2 2 . . 2 . . 3 . 2 1 2 . 7 . . . 2 . 2 . 3 . 4 4 7 6 Weapon 23 | . 2 . . . 1 1 2 . . 1 . . 1 1 1 . . . . . 2 . 2 . . . . . . 5 2 2 Tool/Special 4 | . . . . . . . . . . . . . . . . . . . 1 . . . . . . . . . . 1 2 . Average Slot Usage (%) 87 | . 89 66 71 82 76 89 89 86 92 74 73 77 94 98 96 91 90 92 94 93 88 88 91 94 90 91 90 87 84 87 83 75 Engine 1 | . 8 4 8 8 7 3 . . 5 . . 1 . 6 8 6 1 3 4 . . . . . . . . . . . . . Core 1 | . . . . . . 6 8 9 9 6 5 4 9 6 2 . 3 5 5 10 2 . . . . . . . . . . . Reactor 4 | . . . . . . . . . . . . . . . . . . . . . 2 4 4 4 4 8 8 8 7 7 7 3 Treads 5 | . 13 . . . . . . . 8 . . . . . . . . . . . . . . . 3 8 8 7 7 11 11 11 Leg 2 | . . . . . . . . . 8 . . . . . . . . . 8 10 9 9 12 13 7 . . . . . . . Flight 5 | . 14 17 28 12 24 27 27 27 7 3 . 14 23 20 20 17 12 11 2 . . . . . . . . . . . . . Device 14 | . 23 24 11 11 10 26 23 18 15 18 13 16 11 11 12 13 10 11 8 5 6 9 9 16 9 4 9 19 17 18 21 32 Storage 3 | . . . . . . . . . . 2 7 2 2 . 3 5 5 5 5 5 5 4 4 4 4 4 4 4 3 4 4 3 Processor 1 | . . . . . . . 2 9 8 6 7 8 4 5 6 5 5 . . . . 1 . . . . . . . . 1 7 Hackware 31 | . 4 . . . . . . . . 6 7 7 17 31 25 28 33 40 45 56 54 53 54 47 50 52 45 36 35 35 27 7 Energy Cannon 1 | . . . . . . . . . . . . . . . . . . . . . . . . . 3 4 4 4 3 1 3 1 Ballistic Gun 3 | . 18 3 . 3 21 26 23 20 20 4 10 6 14 4 2 . . . . . . . . . . . . . . . . 2 Ballistic Cannon 1 | . 4 6 8 26 7 . . 1 . . . 1 . . 1 . . . . . . . . . . . . . . 2 . . Special Weapon 2 | . . 1 . . . . . . . . . . 3 2 3 5 4 5 3 4 2 3 3 8 3 4 4 4 3 3 2 . Slashing Weapon 1 | . . . 11 2 . . . . . . . . . . . 4 5 . 4 . 2 . . . . 4 4 4 2 . . . Peak Build Rating 229 | 7 19 24 30 29 29 38 43 41 46 57 54 57 60 71 77 83 85 84 105 104 118 118 143 141 155 144 155 171 174 186 222 229 Average Rating 119 | 4 8 20 25 27 22 32 36 38 37 48 47 49 53 66 70 78 80 78 93 100 99 113 120 140 139 142 147 170 167 174 194 204 On Entrance 81 | . 7 19 24 24 29 26 37 40 37 20 52 38 56 60 68 73 80 85 79 96 100 96 107 127 141 144 141 153 171 164 179 222 Avg Prop Armor Cover (%) 13 | 28 30 . . 1 1 . . . 9 4 13 . . . . . 9 8 4 . . . 11 . . . . . . . . . Naked Turns . | . . . . . . . . . . . . . . . . . . . . . . . . . . . . . . . . . Heaviest Build 247 | 3 11 14 14 19 19 18 18 19 33 31 29 22 21 16 26 23 24 21 68 58 65 60 90 90 192 192 211 210 210 210 247 233 Greatest Support 245 | 20 8 10 15 24 24 19 19 21 66 28 27 22 22 25 25 23 23 23 76 64 66 66 88 88 103 103 103 135 148 215 245 245 Greatest Overweight (x) 3 | . 3 2 . . 2 . 1 . 1 1 1 1 1 . 1 . 2 . 1 . 1 . 1 1 1 1 2 1 1 1 1 1 Average Overweight (x) . | . . . . . . . . . . . . . . . . . . . . . . . . 1 . 1 1 1 1 . . . Largest Inventory Capacity 31 | 5 6 6 6 6 6 6 6 6 6 11 11 11 9 6 11 11 11 11 21 21 21 21 21 21 31 31 31 31 31 31 31 31 Average Capacity 21 | 5 5 6 6 6 6 6 6 6 6 7 11 7 7 6 8 11 11 11 18 21 21 21 21 21 24 31 31 31 31 31 31 31 Most Carried 31 | 5 5 6 6 6 6 6 6 6 6 11 11 10 9 6 11 11 11 11 21 21 21 21 21 20 31 31 31 31 31 31 31 31 Average Carried 20 | 3 4 5 4 5 5 5 5 5 5 7 10 7 6 5 8 10 10 10 17 20 20 20 20 19 24 30 30 30 30 30 26 26 Final Capacity 31 | 5 6 6 6 6 6 6 6 6 6 11 11 6 6 6 11 11 11 11 21 21 21 21 21 21 31 31 31 31 31 31 31 31 Final Carried 31 | 5 5 5 5 6 6 6 6 5 6 11 10 6 6 6 11 11 11 11 21 21 21 21 21 19 31 30 31 31 31 31 27 17 Class Distribution -------------------- 68% | Botlord-Mutant 7% | Mutant 4% | Scavenger-Sprinter 3% | Botlord-Sprinter 3% | Scavenger-Mutant Dominant Class ---------------- Mutant | -10/Materials Mutant | -10/Mines Mutant | -9/Materials Gunner | -9/Storage Scavenger-Gunner | -9/Garrison Scavenger-Tank | -8/Materials Scavenger-Sprinter | -8/Garrison Scavenger-Sprinter | -8/Materials Scavenger-Mutant | -8/Garrison Mutant | -7/Factory Mutant | -7/Waste Sprinter | -7/Factory Scavenger-Sprinter | -7/Garrison Bothacker-Sprinter | -6/Factory Botlord-Sprinter | -6/Garrison Botlord-Sprinter | -5/Factory Botlord-Mutant | -5/Garrison Botlord-Sprinter | -5/Factory Botlord-Mutant | -5/Garrison Botlord-Mutant | -4/Factory Botlord-Mutant | -4/Garrison Botlord-Mutant | -3/Research Botlord-Mutant | -3/Garrison Botlord-Mutant | -2/Research Botlord-Mutant | -2/Garrison Botlord-Mutant | -2/Research Botlord-Mutant | -2/Garrison Botlord-Mutant | -1/Access Botlord-Mutant | -1/Garrison Botlord-Mutant | -1/Access Botlord-Mutant | -1/Command Hauler-Mutant | -1/Access_0 Resources | -11 -10 -10 -9 -9 -9 -8 -8 -8 -8 -7 -7 -7 -7 -6 -6 -5 -5 -5 -5 -4 -4 -3 -3 -2 -2 -2 -2 -1 -1 -1 -1 -1 ----------- Run | Yrd Mat Min Mat Sto Gar Mat Gar Mat Gar Fac Was Fac Gar Fac Gar Fac Gar Fac Gar Fac Gar Res Gar Res Gar Res Gar Acc Gar Acc Com Ac0 Matter Collected 25299 | 319 573 763 62 214 1351 457 997 267 1262 387 83 224 1021 143 790 408 1162 4 1452 . 1740 343 865 . 1708 . 1952 109 1454 2619 1576 994 Remotely 994 | . . . . . . . . . . . . . . . . . . . . . . . . . . . . . . . . 994 Salvage Created 13515 | 205 497 109 172 179 1051 336 786 150 935 387 . 218 623 182 1158 19 723 . 526 . 725 . . . 499 . 901 . 201 442 282 2209 Parts 679 | 18 23 16 9 10 76 28 44 14 60 11 . 15 30 9 50 4 27 . 14 . 15 . . . 22 . 29 . 1 21 3 130 Haulers Intercepted 12 | . 2 . 1 3 . 2 . 1 . 1 . 1 . . . . . . . . . . . . . . . . . 1 . . Recyclers Shooed 4 | . . . . . . . . . . 1 . . . 2 . . . . . . . . . . . . . . . 1 . . Parts Field Recycled . | . . . . . . . . . . . . . . . . . . . . . . . . . . . . . . . . . Retrieved Matter . | . . . . . . . . . . . . . . . . . . . . . . . . . . . . . . . . . Parts Self-Destructed . | . . . . . . . . . . . . . . . . . . . . . . . . . . . . . . . . . Prevented . | . . . . . . . . . . . . . . . . . . . . . . . . . . . . . . . . . Parts Restored . | . . . . . . . . . . . . . . . . . . . . . . . . . . . . . . . . . Kills | -11 -10 -10 -9 -9 -9 -8 -8 -8 -8 -7 -7 -7 -7 -6 -6 -5 -5 -5 -5 -4 -4 -3 -3 -2 -2 -2 -2 -1 -1 -1 -1 -1 ------- Run | Yrd Mat Min Mat Sto Gar Mat Gar Mat Gar Fac Was Fac Gar Fac Gar Fac Gar Fac Gar Fac Gar Res Gar Res Gar Res Gar Acc Gar Acc Com Ac0 Combat Hostiles Destroyed 199 | . 12 8 4 2 37 4 20 6 25 2 . 7 14 3 9 . 3 . 3 . 1 . . . 2 . 3 . 4 4 2 24 Melee 11 | . . . 2 . 1 . . . . 1 . . 1 . . . 2 . 3 . 1 . . . . . . . . . . . Guns 119 | . 4 7 . . 20 4 20 2 17 1 . 7 10 . 3 . . . . . . . . . . . . . . . . 24 Cannons 45 | . 8 1 2 2 14 . . 1 1 . . . . 1 . . . . . . . . . . 2 . 3 . 4 4 2 . AOE 24 | . . . . . 2 . . 3 7 . . . 3 2 6 . 1 . . . . . . . . . . . . . . . Classes Destroyed 17 | 3 4 1 1 . 2 2 . . 2 . . . . . 1 . . . 1 . . . . . . . . . . . . . Worker 8 | 1 . . . . . . . . . 1 . . . 2 . 1 . . . . . . . . . . . . . 2 1 . Builder 5 | . . . . . . 3 . . . 1 . . . . . . . . . . . . . . . . . . . 1 . . Tunneler 7 | 5 . . . . . . . . . . . . . . . . . . . . . . . . . . . . . 2 . . Hauler 12 | . 2 . 1 3 . 2 . 1 . 1 . 1 . . . . . . . . . . . . . . . . . 1 . . Recycler 5 | 1 1 . . . . . . . . 2 . . . 1 . . . . . . . . . . . . . . . . . . Mechanic 1 | . . . . . . 1 . . . . . . . . . . . . . . . . . . . . . . . . . . Operator 2 | . 1 . . . . 1 . . . . . . . . . . . . . . . . . . . . . . . . . . Watcher 2 | . . . . . . . . . . . . . . . . . . . 1 . . . . . 1 . . . . . . . Swarmer 57 | . 3 7 2 . 10 1 7 4 4 . . 5 10 3 . . . . . . . . . . . . 1 . . . . . Cutter 2 | . . . . . . . . . . . . . . . 2 . . . . . . . . . . . . . . . . . Grunt 65 | . 9 . 1 . 18 1 6 . 12 . . 1 4 . 9 . 2 . 1 . . . . . . . 1 . . . . . Brawler 4 | . . . . . 1 . 1 . . . . 1 . . . . 1 . . . . . . . . . . . . . . . Duelist 3 | . . . 1 . . . . . 1 . . . . . . . . . . . . . . . . . . . 1 . . . Sentry 24 | . . 1 . 2 6 2 5 1 5 2 . . . . . . . . . . . . . . . . . . . . . . Specialist 2 | . . . . . . . . . 1 . . . . . . . . . . . . . . . . . . . . 1 . . Hunter 7 | . . . . . 2 . 1 1 . . . . . . . . . . . . . . . . . . . . 2 . 1 . Programmer 13 | . . . . . . . . . 2 . . . 1 . . . . . 2 . 1 . . . 2 . 1 . 1 3 . . Enhanced Grunt 12 | . . . . . . . . . . . . . . . . . . . . . . . . . . . . . . . . 12 Enhanced Hunter 8 | . . . . . . . . . . . . . . . . . . . . . . . . . . . . . . . . 8 Enhanced Programmer 4 | . . . . . . . . . . . . . . . . . . . . . . . . . . . . . . . . 4 Best Kill Streak 8 | 5 3 7 2 2 6 4 5 3 8 3 . 4 4 4 5 1 1 . 1 . 1 . . . 2 . 1 . 3 1 1 5 Combat Bots Only 8 | . 3 7 2 2 6 2 5 3 8 1 . 4 4 3 5 . 1 . 1 . 1 . . . 2 . 1 . 3 1 1 5 Max Kills in Single Turn 4 | 1 2 1 1 1 1 2 2 1 2 2 . 1 3 2 4 1 1 . 1 . 1 . . . 1 . 1 . 1 1 1 2 Gunslinging 1 | . . . . . . . . . 1 . . . . . . . . . . . . . . . . . . . . . . 1 Exploded 3 | . . . . . 1 . . 1 2 . . . 3 1 2 . 1 . . . . . . . . . . . . . . . Melee 1 | . . . 1 . 1 . . . . 1 . . 1 . . . 1 . 1 . 1 . . . . . . . . . . . Uniques/NPCs Destroyed 3 | . . . . . . . . . . . . . . . . . . . . . . . . . . . . . . . 2 1 MAIN.C Shell (-1/Command) MAIN.C (-1/Command) A8 (-1/Access_0) Combat | -11 -10 -10 -9 -9 -9 -8 -8 -8 -8 -7 -7 -7 -7 -6 -6 -5 -5 -5 -5 -4 -4 -3 -3 -2 -2 -2 -2 -1 -1 -1 -1 -1 -------- Run | Yrd Mat Min Mat Sto Gar Mat Gar Mat Gar Fac Was Fac Gar Fac Gar Fac Gar Fac Gar Fac Gar Res Gar Res Gar Res Gar Acc Gar Acc Com Ac0 Hostile Shots Fired 1627 | . 49 46 64 26 143 23 77 16 165 49 3 37 52 4 66 . 30 . 20 . 50 21 22 . 13 . 45 5 82 60 20 439 Missed 567 | . 11 18 30 5 49 9 31 7 49 21 . 12 17 2 38 . 13 . 6 . 16 8 8 . 5 . 17 3 16 20 8 148 Intercepted 2 | . . . . . . . . . . . . . . . . . . . . . . 2 . . . . . . . . . . Deflected 1 | . . . . . . . . . . . . . . . . . . . . . 1 . . . . . . . . . . . Hits 1060 | . 38 28 34 21 94 14 46 9 116 28 3 25 35 2 28 . 17 . 14 . 34 13 14 . 8 . 28 2 66 40 12 291 Melee 22 | . . . . 1 . . . . 10 . 3 1 . . 4 . . . 3 . . . . . . . . . . . . . Projectile 1038 | . 38 28 34 20 94 14 46 9 106 28 . 24 35 2 24 . 17 . 11 . 34 13 14 . 8 . 28 2 66 40 12 291 AOE 12 | . . . . . . . . . 3 . . . . . 3 . . . 1 . . . 2 . . . . . . 1 2 . Critical Strikes 72 | . 2 . . 1 2 . 3 . 6 1 1 1 2 . 3 . 3 . 1 . 1 1 . . . . 3 . 4 2 . 35 Actively Blocked 22 | . . . . . . . . . . . . . . . . . . . . . . . . . . . 3 . 4 2 . 13 Part Disruptions 5 | . . . . . . . . . 2 . . . . . . . . . . . . . 1 . . . . . 2 . . . Damage Taken 24370 | . 498 205 387 317 1150 157 622 112 1934 292 142 368 504 28 626 . 473 17 361 . 683 391 453 . 286 . 804 65 1515 1832 1417 8731 Core 3445 | . 46 83 112 67 242 53 161 21 234 50 1 111 75 14 229 . 185 5 95 . 129 54 63 . 21 . 98 . 134 178 77 907 Absorbed by Shields 2102 | . . . . . . . 46 . 41 . . . 50 . . . . . 20 . 80 . 22 . 89 . 56 61 308 . 283 1046 Reduced by Siege Mode 1163 | . . . . . . . . . . . . . . . . . . . . . . . . . . . . . 85 . . 1078 Ignored by Resistances 183 | . . 54 . . . . . . 42 . . . . . 15 . . . . . . . . . . . . . . . . 72 Regen/Repaired (Parts) 462 | . . . . . . . . 12 . . . . 2 . 64 1 40 . . . . . . . . . 13 . 257 73 . . Core Remaining (%) 76 | 100 . 58 . . 88 . . . 27 . . . 91 . 95 . . . 95 . 88 . 90 . . . 91 . . . . 15 Volleys Fired 1502 | 16 64 29 9 8 117 26 43 18 87 6 . 26 45 14 31 26 32 7 43 . 56 37 54 . 77 3 87 8 128 106 204 95 Largest 4 | 2 2 2 2 3 3 3 3 3 4 3 . 2 3 2 2 1 1 1 1 . 1 1 1 . 1 1 1 1 1 1 1 2 Hottest 120 | 40 100 85 105 96 89 74 79 79 92 88 . 51 74 63 70 7 39 7 7 . 7 7 120 . 120 10 120 120 120 88 120 120 Shots Fired 2094 | 23 106 38 17 24 247 78 124 42 208 17 . 31 89 15 38 26 32 7 43 . 56 37 54 . 77 3 92 8 131 115 205 111 Gun 868 | 23 49 23 7 . 143 78 124 37 190 9 . 28 67 1 17 . . . . . . . . . . . . . . . . 72 Cannon 585 | . 56 15 10 24 78 . . 2 8 6 . 3 . 1 2 . . . . . . . 4 . 43 . 24 2 60 39 171 37 Launcher 38 | . . . . . 7 . . 3 10 . . . 5 2 7 . 4 . . . . . . . . . . . . . . . Special 603 | . 1 . . . 19 . . . . 2 . . 17 11 12 26 28 7 43 . 56 37 50 . 34 3 68 6 71 76 34 2 Kinetic 1122 | 23 105 23 10 24 221 78 124 39 198 15 . 31 67 2 19 . . . . . . . 1 . . . . . 29 35 5 73 Thermal 348 | . 1 15 7 . 19 . . . . 2 . . . . . . . . . . . . 3 . 43 . 24 2 30 . 166 36 Explosive 38 | . . . . . 7 . . 3 10 . . . 5 2 7 . 4 . . . . . . . . . . . . . . . Electromagnetic 5 | . . . . . . . . . . . . . . . . . . . . . . . . . . . . . 1 4 . . Robot Hit Streak 40 | 14 12 4 4 10 18 8 7 4 13 5 . 8 8 6 5 25 40 13 29 . 27 24 14 . 20 10 16 15 30 17 21 28 Robot Miss Streak 11 | 1 4 10 2 1 4 4 4 4 11 2 . 8 5 1 3 1 1 . 2 . 1 2 2 . 2 . 4 1 3 2 1 3 Penetration Max 1 | . . . . . . 1 1 1 1 . . . . . . . . . . . . . . . . . . . . . . 1 Secondary Targets 15 | . 1 1 . . 2 . 4 . 2 . . . 2 . 1 . . . . . . . . . . . . . . . . 2 Max Gunslinging Chain 1 | . 1 1 . . 1 . 1 . 1 . . . 1 . 1 . . . . . . . . . . . . . . . . 1 Shots Hit Robots 1479 | 20 67 21 17 17 137 37 65 21 102 15 . 35 59 16 87 27 52 7 59 . 85 31 43 . 49 3 94 5 95 85 41 87 Core Hits 505 | 9 23 14 6 7 59 16 34 8 55 7 . 35 35 6 36 1 21 . 10 . 11 . . . 12 . 17 . 10 9 6 58 Critical Kills 29 | . . . . . 2 . 1 . . . . . 2 . . . . . . . . . . . . . . . . . . 24 Critical Parts Destroyed 28 | . . . . . . 1 . . 2 . . . . . . . . . . . . . . . . . . . . . . 25 Critical Strikes 90 | . 4 2 . 1 5 1 1 1 2 1 . 1 3 . 3 . 3 . 1 . . . . . . . 3 . 5 4 . 49 Destroy 57 | . . . . . 2 1 1 . 2 . . . 2 . . . . . . . . . . . . . . . . . . 49 Blast 18 | . 4 2 . 1 . . . 1 . 1 . . . . . . . . . . . . . . . . . . 5 4 . . Sever 11 | . . . . . 3 . . . . . . . . . 1 . 3 . 1 . . . . . . . 3 . . . . . Impale 4 | . . . . . . . . . . . . 1 1 . 2 . . . . . . . . . . . . . . . . . Melee Attacks 424 | . . . 18 2 24 2 25 2 4 5 . 9 18 7 67 3 51 . 46 . 67 . . . 7 . 58 . 9 . . . Impact 57 | . . . . . 24 2 25 2 4 . . . . . . . . . . . . . . . . . . . . . . . Slashing 269 | . . . 18 2 . . . . . . . . . . 8 3 51 . 46 . 67 . . . 7 . 58 . 9 . . . Piercing 75 | . . . . . . . . . . 5 . 9 18 7 36 . . . . . . . . . . . . . . . . . Sneak Attacks 38 | . . . 2 1 . . . . . 3 . 2 2 3 22 1 1 . 1 . . . . . . . . . . . . . Combat Hostiles 2 | . . . . . . . . . . . . . . 1 1 . . . . . . . . . . . . . . . . . Follow-up Attacks . | . . . . . . . . . . . . . . . . . . . . . . . . . . . . . . . . . Damage Inflicted 34183 | 209 952 243 366 387 2471 771 1192 645 2677 503 . 814 1880 659 3994 161 2716 . 2086 . 2247 17 52 . 1015 . 2915 . 1416 1259 590 1946 Guns 8050 | 209 251 116 60 . 867 771 1192 297 1803 164 . 451 602 . 266 . . . . . . . . . . . . . . . . 1001 Cannons 7984 | . 701 127 108 335 705 . . 23 59 85 . 74 . 29 . . . . . . . . 52 . 1015 . 569 . 1416 1235 506 945 Explosions 4201 | . . . . . 398 . . 325 815 . . . 808 309 1093 . 453 . . . . . . . . . . . . . . . Melee 13622 | . . . 198 52 302 . . . . 252 . 289 470 321 2635 161 2263 . 2086 . 2247 . . . . . 2346 . . . . . Ramming 125 | . . . . . . . . . . . . . . . . . . . . . . 17 . . . . . . . 24 84 . Kinetic 12386 | 209 952 165 108 335 1572 771 1192 320 1862 249 . 525 602 29 266 . . . . . . . . . . . . . 947 1086 167 1029 Thermal 3613 | . . 78 60 . 199 . . . . 2 . . . . . . . . . . . . 52 . 1015 . 569 . 469 . 339 830 Explosive 4201 | . . . . . 398 . . 325 815 . . . 808 309 1093 . 453 . . . . . . . . . . . . . . . Electromagnetic 149 | . . . . . . . . . . . . . . . . . . . . . . . . . . . . . . 149 . . Impact 302 | . . . . . 302 . . . . . . . . . . . . . . . . . . . . . . . . . . . Slashing 10036 | . . . 198 52 . . . . . . . . . . 683 161 2263 . 2086 . 2247 . . . . . 2346 . . . . . Piercing 3284 | . . . . . . . . . . 252 . 289 470 321 1952 . . . . . . . . . . . . . . . . . Entropic 87 | . . . . . . . . . . . . . . . . . . . . . . . . . . . . . . . . 87 Highest Corruption 39 | . . . . . 1 . 32 32 39 . 5 5 12 . . . 20 19 19 . 2 1 1 . 1 1 22 1 16 16 8 7 Average Corruption 14 | . . . . . 1 . 23 32 35 . 5 3 3 . . . 19 19 19 . 2 1 1 . 1 1 19 1 10 9 5 2 Corruption Purged 26 | . . . . . . . . . . . . 5 . . . . . . . . . . . . . . . . . . 11 10 Corruption Blocked . | . . . . . . . . . . . . . . . . . . . . . . . . . . . . . . . . . Effects 520 | . . . . . 1 . 16 12 81 . 2 6 5 . . . 21 7 40 . 5 1 . . 1 1 125 . 74 117 3 2 Message Errors 117 | . . . . . . . 3 . 15 . 1 . 1 . . . 6 2 9 . 4 1 . . 1 . 32 . 13 27 2 . Matter Fused 108 | . . . . . . . 4 3 15 . 1 3 2 . . . 7 1 8 . . . . . . . 26 . 15 23 . . Heat Flow Errors 59 | . . . . . . . 1 . 7 . . 1 . . . . 1 2 7 . . . . . . . 16 . 10 13 1 . Energy Discharges 59 | . . . . . . . 3 2 7 . . . . . . . 3 1 5 . . . . . . 1 10 . 12 15 . . Parts Rejected 4 | . . . . . . . . . . . . . . . . . . . . . . . . . . . 1 . 1 2 . . Parts Fused 6 | . . . . . 1 . . . . . . . . . . . . . 1 . . . . . . . 1 . 3 . . . Data Loss (minor) 71 | . . . . . . . 1 2 10 . . 2 . . . . 2 1 4 . 1 . . . . . 20 . 9 18 . 1 Data Loss (major) 32 | . . . . . . . 1 . 6 . . . . . . . 2 . 5 . . . . . . . 9 . 4 5 . . Misfires 25 | . . . . . . . 1 2 3 . . . 1 . . . . . . . . . . . . . 6 . 4 8 . . Alerts 13 | . . . . . . . . . 4 . . . . . . . . . . . . . . . . . 3 . 1 5 . . Misdirections 5 | . . . . . . . . 1 1 . . . . . . . . . 1 . . . . . . . . . 1 1 . . Weapon Failures 21 | . . . . . . . 2 2 13 . . . 1 . . . . . . . . . . . . . 1 . 1 . . 1 Overload Shots . | . . . . . . . . . . . . . . . . . . . . . . . . . . . . . . . . . Overflow Damage 640 | . 3 . . . 37 . . 24 14 47 . 16 3 81 158 21 14 . 84 . 84 . 2 . . . . . 6 39 7 . Projectiles 77 | . 3 . . . 20 . . . . . . 6 . . . . . . . . . . 2 . . . . . 6 39 1 . Explosions 108 | . . . . . 17 . . 24 14 . . . 3 12 24 . 14 . . . . . . . . . . . . . . . Melee 455 | . . . . . . . . . . 47 . 10 . 69 134 21 . . 84 . 84 . . . . . . . . . 6 . Knockbacks 34 | . 12 . 1 . 2 . . . . 1 . 2 . . . . . . . . . . . . . . . . 4 10 2 . Impact 2 | . . . . . 1 . . . . . . . . . . . . . . . . . . . . . . . . 1 . . Kinetic 31 | . 11 . 1 . 1 . . . . 1 . 2 . . . . . . . . . . . . . . . . 4 9 2 . Secondary 1 | . 1 . . . . . . . . . . . . . . . . . . . . . . . . . . . . . . . Self-Inflicted Damage 347 | . . . . . 67 . . . 156 . . . . . 69 . 55 . . . . . . . . . . . . . . . Shots 12 | . . . . . 3 . . . 5 . . . . . 3 . 1 . . . . . . . . . . . . . . . Rammed 8 | . . . . . . . . . . . . . . . . . . . . . . . . . . . . . . 2 6 . Targets Rammed 11 | . . . . . . . . . . . . . . . . . . . . . . 2 . . . . . . . 3 6 . Kicked 2 | . . . . . . . . . . . . . . . . . . . . . . 2 . . . . . . . . . . Crushed 1 | . . . . . . . . . . . . . . . . . . . . . . . . . . . . . . 1 . . Highest Temperature 342 | . 72 259 225 75 111 72 209 30 317 342 . 165 116 14 18 . 229 170 278 . . . 92 . 216 . 257 . 248 220 262 . Average Temperature 61 | . 19 117 99 37 35 15 55 12 89 76 . 72 35 10 8 . 130 76 104 . . . 42 . 65 . 77 . 92 89 32 . Received Heat Transfer 2357 | . 288 12 45 126 309 54 287 18 408 150 . 54 78 . 120 . 51 6 54 . 86 51 36 . 18 . 31 . 18 27 30 . Effects 1 | . . . . . . . . . 1 . . . . . . . . . . . . . . . . . . . . . . . Short Circuit 1 | . . . . . . . . . 1 . . . . . . . . . . . . . . . . . . . . . . . Siege Activations 4 | . . . . . . . . . . . . . . . . . . . . . . . . . . . . . 1 . . 3 Total Turns 121 | . . . . . . . . . . . . . . . . . . . . . . . . . . . . . 29 . . 92 Longest Duration 49 | . . . . . . . . . . . . . . . . . . . . . . . . . . . . . 29 . . 49 Martial Activations 3 | . . . . . . . . . . . . . . . . . . . 2 . 1 . . . . . . . . . . . Total Turns 221 | . . . . . . . . . . . . . . . . . . . 201 . 20 . . . . . . . . . . . Longest Duration 114 | . . . . . . . . . . . . . . . . . . . 114 . 20 . . . . . . . . . . . Shielding Activations . | . . . . . . . . . . . . . . . . . . . . . . . . . . . . . . . . . Robots Disrupted . | . . . . . . . . . . . . . . . . . . . . . . . . . . . . . . . . . Combat Hostiles . | . . . . . . . . . . . . . . . . . . . . . . . . . . . . . . . . . Robots Corrupted 1 | . . . . . . . . . . . . . . . . . . . . . . . . . . . . . . . 1 . Combat Hostiles . | . . . . . . . . . . . . . . . . . . . . . . . . . . . . . . . . . Parts Fried 4 | . . . . . . . . . . . . . . . . . . . . . . . . . . . . . . 2 2 . Impact Corruptions 1 | . . . . . . . . . . . . . . . . . . . . . . . . . . . . . . . 1 . Robots Melted . | . . . . . . . . . . . . . . . . . . . . . . . . . . . . . . . . . Combat Hostiles . | . . . . . . . . . . . . . . . . . . . . . . . . . . . . . . . . . Parts Melted 1 | . . 1 . . . . . . . . . . . . . . . . . . . . . . . . . . . . . . Heat Transferred 2957 | . . 100 111 . 666 . . . . 25 . . . . . . . . . . . . 37 . 832 . 425 . 332 . 220 209 Parts Sabotaged . | . . . . . . . . . . . . . . . . . . . . . . . . . . . . . . . . . Parts Stolen . | . . . . . . . . . . . . . . . . . . . . . . . . . . . . . . . . . Parts Stripped . | . . . . . . . . . . . . . . . . . . . . . . . . . . . . . . . . . Power Chain Reactions . | . . . . . . . . . . . . . . . . . . . . . . . . . . . . . . . . . Alert | -11 -10 -10 -9 -9 -9 -8 -8 -8 -8 -7 -7 -7 -7 -6 -6 -5 -5 -5 -5 -4 -4 -3 -3 -2 -2 -2 -2 -1 -1 -1 -1 -1 ------- Run | Yrd Mat Min Mat Sto Gar Mat Gar Mat Gar Fac Was Fac Gar Fac Gar Fac Gar Fac Gar Fac Gar Res Gar Res Gar Res Gar Acc Gar Acc Com Ac0 Maximum Alert Level 4 | . 1 1 1 . 4 3 4 3 4 2 . . 3 1 4 2 3 2 4 2 4 3 4 2 3 2 3 2 1 . 2 . Low Security (%) 33 | 100 91 22 93 100 9 . . . . . 100 100 13 3 . . . . . . . . . . . . . . 49 100 69 . Level 1 10 | . 8 77 6 . 14 . . . . . . . 3 96 22 . . . 2 . . . . . . . 5 . 50 . 27 . Level 2 22 | . . . . . 18 40 4 34 29 100 . . 60 . 25 100 26 100 35 100 11 5 . 100 32 100 66 99 . . 3 . Level 3 26 | . . . . . 25 59 32 65 55 . . . 23 . 43 . 73 . 48 . 70 94 67 . 67 . 27 . . . . . Level 4 6 | . . . . . 31 . 62 . 15 . . . . . 8 . . . 14 . 17 . 32 . . . . . . . . . Level 5 . | . . . . . . . . . . . . . . . . . . . . . . . . . . . . . . . . . High Security . | . . . . . . . . . . . . . . . . . . . . . . . . . . . . . . . . . Max Security . | . . . . . . . . . . . . . . . . . . . . . . . . . . . . . . . . . Peak Influence 1470 | 10 219 284 204 123 1222 1084 1470 747 1308 639 197 120 733 384 1126 679 1005 555 1236 648 1273 991 1191 669 936 565 1088 652 344 185 103 . Initial 737 | . 3 85 91 81 67 595 647 716 485 639 197 81 52 384 206 590 443 527 370 648 431 715 737 669 486 526 393 652 336 185 13 . Average 495 | 2 100 227 146 94 757 803 1154 658 842 585 169 62 553 253 663 580 766 533 771 626 891 824 1014 662 766 538 625 495 169 16 15 . Influence Increases 18059 | 35 584 330 263 133 1265 641 843 471 1053 96 . 184 751 161 1080 333 792 82 1006 48 1402 1004 844 . 840 59 1345 59 654 377 725 599 Destroy 0b10 Robot/C 6307 | . 240 160 80 60 800 280 460 260 600 40 . 140 325 75 360 105 255 15 240 . 444 336 264 . 264 24 252 . 132 60 36 . Destroy 0b10 Robot/NC 385 | 35 20 . 5 15 . 45 . 5 . 25 . 5 12 12 44 20 20 8 24 . 18 18 . . 12 . 18 . . 21 3 . Destroy Leader 774 | . 54 . 12 36 30 96 30 82 40 22 . 12 36 16 16 28 24 4 16 . 44 42 30 . 30 . 36 . 18 20 . . Allied During Kill 2838 | . . 8 . 5 24 89 11 46 33 . . . 17 21 191 124 196 13 261 . 444 394 260 . 269 24 208 . 96 73 31 . Successful Hack 266 | . 35 . 14 . 7 5 28 3 . 7 . 12 . 9 22 18 17 6 . . 19 . 18 . 9 . . 26 8 . 3 . Select Force Hacks 140 | . 110 . 30 . . . . . . . . . . . . . . . . . . . . . . . . . . . . . Disable Machine 402 | . . . . 15 15 15 . 30 15 . . . . 12 . 24 . 36 . 48 21 18 . . . 9 27 9 9 54 36 9 Anti-Garrison Action 3583 | . . . . . 250 . 200 . 300 . . . 214 . 266 . 114 . 453 . 346 . 180 . 210 . 720 . 330 . . . Destroy Structure 2244 | . 5 . 2 2 64 6 69 15 50 2 . . 48 4 73 14 106 . 12 . 54 72 92 . 46 2 84 24 61 140 607 590 Partial Spotted 240 | . 30 . 15 . 15 30 45 15 . . . 15 39 12 24 . . . . . . . . . . . . . . . . . Lose Combat Pursuer 654 | . 90 60 105 . 60 75 . 15 15 . . . 60 . 84 . 60 . . . 12 . . . . . . . . 9 9 . Miscellaneous 226 | . . 102 . . . . . . . . . . . . . . . . . . . 124 . . . . . . . . . . Influence Decreases 17880 | 30 370 314 304 223 147 867 369 1194 582 749 448 226 93 599 249 826 420 558 299 668 745 1294 636 542 553 470 782 726 765 665 323 844 Entered New Map 9112 | . 2 134 144 113 37 627 349 754 262 579 368 36 23 349 89 536 190 478 159 588 185 558 246 522 163 410 132 436 85 125 9 424 Time Decay 2749 | 30 368 140 120 100 . 160 . 80 . 170 30 190 . 80 . 140 . 60 . 80 . 246 . 20 . 60 . 230 . 306 139 . Lost Part 930 | . . . 40 10 90 . 20 . 180 . 50 . 10 . 30 20 50 . 10 . 100 10 20 . 20 . 10 . 20 . 30 210 Lost Ally 4489 | . . 40 . . 20 80 . 60 140 . . . 60 20 130 130 180 20 130 . 460 480 370 . 370 . 490 60 660 234 145 210 Purge Threat 600 | . . . . . . . . 300 . . . . . 150 . . . . . . . . . . . . 150 . . . . . Squads Dispatched 57 | . 4 1 4 2 . 2 . 1 . 2 . 3 . . . 4 . . . . . 7 . . . . . 3 . 18 6 . Investigation 10 | . 3 . 2 . . . . 1 . . . 1 . . . 1 . . . . . . . . . . . 1 . 1 . . Extermination 23 | . . . . . . . . . . 1 . . . . . 1 . . . . . 2 . . . . . 1 . 12 6 . Reinforcement 16 | . 1 . 2 . . 2 . . . 1 . 2 . . . 1 . . . . . 2 . . . . . . . 5 . . Assault 4 | . . 1 . 2 . . . . . . . . . . . . . . . . . 1 . . . . . . . . . . Garrison 4 | . . . . . . . . . . . . . . . . 1 . . . . . 2 . . . . . 1 . . . . Intercept . | . . . . . . . . . . . . . . . . . . . . . . . . . . . . . . . . . Searches Triggered . | . . . . . . . . . . . . . . . . . . . . . . . . . . . . . . . . . Construction Impeded . | . . . . . . . . . . . . . . . . . . . . . . . . . . . . . . . . . Haulers Reinforced 4 | . . . . . . . . . . . . 1 . . . . . . . . . 1 . . . . . . . 2 . . Active Scanning Responses . | . . . . . . . . . . . . . . . . . . . . . . . . . . . . . . . . . Cargo Convoy Interrupts . | . . . . . . . . . . . . . . . . . . . . . . . . . . . . . . . . . Alert ID Control Effect 145 | . . . . . . . . . . . . . . . . . . . . . . . . . . . 8 18 27 60 32 . Stealth | -11 -10 -10 -9 -9 -9 -8 -8 -8 -8 -7 -7 -7 -7 -6 -6 -5 -5 -5 -5 -4 -4 -3 -3 -2 -2 -2 -2 -1 -1 -1 -1 -1 --------- Run | Yrd Mat Min Mat Sto Gar Mat Gar Mat Gar Fac Was Fac Gar Fac Gar Fac Gar Fac Gar Fac Gar Res Gar Res Gar Res Gar Acc Gar Acc Com Ac0 Distress Signals 53 | . 4 . 7 1 . 6 . 1 . . . . . . . . . . 2 . . . . . 1 . . . . 12 19 . Communications Jammed 1137 | . . . . . . . . . . . . . . . . 69 . . . . . 657 . . . . . . 120 291 . . Distress Signals 1129 | . . . . . . . . . . . . . . . . 69 . . . . . 656 . . . . . . 120 284 . . Times Spotted 781 | . 28 13 30 12 46 26 22 8 39 6 6 10 23 5 37 13 18 6 26 . 31 31 18 . 36 1 47 11 52 93 50 37 Peak Tracking Total 17 | . 7 4 17 7 6 7 4 3 7 3 6 4 7 2 7 9 8 2 7 . 6 8 3 . 6 1 5 5 6 6 5 5 Tactical Retreats 24 | . 5 1 3 . 2 2 . 1 1 . . . 1 . 3 . 2 . . . 1 . . . . . . . . 1 1 . Traps | -11 -10 -10 -9 -9 -9 -8 -8 -8 -8 -7 -7 -7 -7 -6 -6 -5 -5 -5 -5 -4 -4 -3 -3 -2 -2 -2 -2 -1 -1 -1 -1 -1 ------- Run | Yrd Mat Min Mat Sto Gar Mat Gar Mat Gar Fac Was Fac Gar Fac Gar Fac Gar Fac Gar Fac Gar Res Gar Res Gar Res Gar Acc Gar Acc Com Ac0 Traps Triggered 74 | . . . . . 9 . 6 1 7 2 . 1 7 . 5 2 1 . 2 . 3 1 1 . 7 . 7 . 5 2 5 . Indirectly . | . . . . . . . . . . . . . . . . . . . . . . . . . . . . . . . . . Trap Hack Attempts . | . . . . . . . . . . . . . . . . . . . . . . . . . . . . . . . . . Triggered . | . . . . . . . . . . . . . . . . . . . . . . . . . . . . . . . . . Disarmed . | . . . . . . . . . . . . . . . . . . . . . . . . . . . . . . . . . Reprogrammed . | . . . . . . . . . . . . . . . . . . . . . . . . . . . . . . . . . Reused . | . . . . . . . . . . . . . . . . . . . . . . . . . . . . . . . . . Traps Extracted . | . . . . . . . . . . . . . . . . . . . . . . . . . . . . . . . . . Installed . | . . . . . . . . . . . . . . . . . . . . . . . . . . . . . . . . . Triggered . | . . . . . . . . . . . . . . . . . . . . . . . . . . . . . . . . . Machines | -11 -10 -10 -9 -9 -9 -8 -8 -8 -8 -7 -7 -7 -7 -6 -6 -5 -5 -5 -5 -4 -4 -3 -3 -2 -2 -2 -2 -1 -1 -1 -1 -1 ---------- Run | Yrd Mat Min Mat Sto Gar Mat Gar Mat Gar Fac Was Fac Gar Fac Gar Fac Gar Fac Gar Fac Gar Res Gar Res Gar Res Gar Acc Gar Acc Com Ac0 Machines Disabled 95 | . . . . 1 6 1 3 2 3 . . . 4 1 6 2 3 3 6 4 9 2 6 . 5 1 9 1 6 6 4 1 Max in Single Turn 1 | . . . . 1 1 . 1 1 1 . . . 1 1 1 1 1 . 1 1 1 . 1 . 1 . 1 . 1 1 1 1 Garrison Relay 51 | . . . . . 3 . 3 . 4 . . . 3 . 4 . 3 . 4 . 7 . 5 . 5 . 5 . 5 . . . Phase Generator 8 | . . . . . 1 . . . 1 . . . 1 . 1 . . . 1 . 1 . 1 . . . . . 1 . . . Energy Cycler 1 | . . . . . . . . . . . . . . . . . . . . . . . . . . . . . . 1 . . Machines Repaired . | . . . . . . . . . . . . . . . . . . . . . . . . . . . . . . . . . Machines Dismantled 15 | . . . . . 1 . . . 1 . . . 1 1 2 1 . . 1 4 . . 2 . . . . . . . 1 . Machines Sabotaged 1 | . 1 . . . . . . . . . . . . . . . . . . . . . . . . . . . . . . . Overloaded Fab Kills . | . . . . . . . . . . . . . . . . . . . . . . . . . . . . . . . . . Hacking | -11 -10 -10 -9 -9 -9 -8 -8 -8 -8 -7 -7 -7 -7 -6 -6 -5 -5 -5 -5 -4 -4 -3 -3 -2 -2 -2 -2 -1 -1 -1 -1 -1 --------- Run | Yrd Mat Min Mat Sto Gar Mat Gar Mat Gar Fac Was Fac Gar Fac Gar Fac Gar Fac Gar Fac Gar Res Gar Res Gar Res Gar Acc Gar Acc Com Ac0 Machines Accessed 85 | . 9 . 7 1 3 3 2 8 2 3 . 3 2 4 2 5 2 4 2 1 2 3 2 1 2 1 3 3 3 . 2 . Terminals 55 | . 7 . 4 . 3 2 2 5 2 1 . . 2 2 2 3 2 1 2 . 2 1 2 . 2 . 3 . 3 . 2 . Fabricators 1 | . . . . . . . . . . . . 1 . . . . . . . . . . . . . . . . . . . . Repair Stations 5 | . . . 1 . . . . 1 . . . . . . . 1 . 1 . . . . . . . . . 1 . . . . Recycling Units 5 | . 2 . 1 . . . . . . 1 . . . . . . . . . . . 1 . . . . . . . . . . Scanalyzers 7 | . . . 1 . . . . 1 . 1 . 1 . 1 . . . 1 . . . . . . . . . 1 . . . . Garrison Access 12 | . . . . 1 . 1 . 1 . . . 1 . 1 . 1 . 1 . 1 . 1 . 1 . 1 . 1 . . . . Total Hacks 207 | . 34 . 20 2 6 7 5 21 6 8 . 6 6 12 5 12 2 11 3 1 4 6 3 2 3 3 5 6 5 . 3 . Successful 94 | . 19 . 12 1 2 4 3 11 . 4 . 3 1 5 3 5 2 2 . 1 2 3 2 1 1 1 1 3 1 . 1 . Failed 111 | . 14 . 8 1 4 3 2 10 6 3 . 3 5 7 2 7 . 9 3 . 2 3 1 1 2 2 4 3 4 . 2 . Catastrophic 23 | . 2 . 1 . 1 . . . . . . . 1 2 . 3 . 2 3 . . . . 1 1 1 2 2 1 . . . Database Lockouts 2 | . 1 . . . . . . . . 1 . . . . . . . . . . . . . . . . . . . . . . Manual 75 | . 24 . 11 . 1 5 2 6 . 1 . 1 . 3 1 8 . 5 . . . 2 . 1 . 2 . 2 . . . . Terminals 138 | . 30 . 11 . 6 6 5 13 6 4 . . 6 7 5 7 2 2 3 . 4 2 3 . 3 . 5 . 5 . 3 . Fabricators 2 | . . . . . . . . . . . . 2 . . . . . . . . . . . . . . . . . . . . Repair Stations 10 | . . . 2 . . . . 1 . . . . . . . 3 . 3 . . . . . . . . . 1 . . . . Recycling Units 11 | . 4 . 3 . . . . . . 2 . . . . . . . . . . . 2 . . . . . . . . . . Scanalyzers 22 | . . . 4 . . . . 5 . 2 . 3 . 3 . . . 2 . . . . . . . . . 3 . . . . Garrison Access 24 | . . . . 2 . 1 . 2 . . . 1 . 2 . 2 . 4 . 1 . 2 . 2 . 3 . 2 . . . . Terminal Hacks 33 | . 7 . 1 . 2 1 2 3 . 1 . . 1 2 2 1 2 . . . 2 . 2 . 1 . 1 . 1 . 1 . Robot Schematic 1 | . 1 . . . . . . . . . . . . . . . . . . . . . . . . . . . . . . . Robot Analysis 1 | . 1 . . . . . . . . . . . . . . . . . . . . . . . . . . . . . . . Open Door 3 | . . . . . 1 . . . . . . . . . . . 1 . . . . . . . . . . . . . 1 . Branch Access Points 2 | . . . 1 . . . . . . . . . . . . 1 . . . . . . . . . . . . . . . . Emergency Access Points 7 | . . . . . 1 . 1 . . . . . . . 1 . . . . . 1 . 1 . . . 1 . 1 . . . Alert Level 1 | . 1 . . . . . . . . . . . . . . . . . . . . . . . . . . . . . . . Unreport Threat 3 | . . . . . . . . 2 . . . . . 1 . . . . . . . . . . . . . . . . . . Locate Traps 4 | . . . . . . 1 . 1 . 1 . . . 1 . . . . . . . . . . . . . . . . . . Dispatch Records 1 | . 1 . . . . . . . . . . . . . . . . . . . . . . . . . . . . . . . Recall Investigation 1 | . 1 . . . . . . . . . . . . . . . . . . . . . . . . . . . . . . . Hauler Manifests 1 | . 1 . . . . . . . . . . . . . . . . . . . . . . . . . . . . . . . Registered Components 1 | . 1 . . . . . . . . . . . . . . . . . . . . . . . . . . . . . . . Garrison Registry 3 | . . . . . . . . . . . . . . . 1 . 1 . . . . . 1 . . . . . . . . . Patrol Navigation 2 | . . . . . . . 1 . . . . . . . . . . . . . . . . . 1 . . . . . . . Security Stations 2 | . . . . . . . . . . . . . 1 . . . . . . . 1 . . . . . . . . . . . Fabricator Hacks 1 | . . . . . . . . . . . . 1 . . . . . . . . . . . . . . . . . . . . Network Status 1 | . . . . . . . . . . . . 1 . . . . . . . . . . . . . . . . . . . . Repair Station Hacks 3 | . . . 2 . . . . . . . . . . . . . . 1 . . . . . . . . . . . . . . Scan Component 1 | . . . 1 . . . . . . . . . . . . . . . . . . . . . . . . . . . . . Repair 1 | . . . 1 . . . . . . . . . . . . . . . . . . . . . . . . . . . . . Refit 1 | . . . . . . . . . . . . . . . . . . 1 . . . . . . . . . . . . . . Recycling Unit Hacks 4 | . 1 . 1 . . . . . . 1 . . . . . . . . . . . 1 . . . . . . . . . . Retrieve Components 4 | . 1 . 1 . . . . . . 1 . . . . . . . . . . . 1 . . . . . . . . . . Scanalyzer 13 | . . . 4 . . . . 3 . 1 . 1 . 2 . . . . . . . . . . . . . 2 . . . . Insert Component 2 | . . . 1 . . . . . . . . 1 . . . . . . . . . . . . . . . . . . . . Analyze 2 | . . . 2 . . . . . . . . . . . . . . . . . . . . . . . . . . . . . Retrieve Study 9 | . . . 1 . . . . 3 . 1 . . . 2 . . . . . . . . . . . . . 2 . . . . Garrison Access Hacks 12 | . . . . 1 . 1 . 1 . . . 1 . 1 . 1 . 1 . 1 . 1 . 1 . 1 . 1 . . . . Unlock Access 12 | . . . . 1 . 1 . 1 . . . 1 . 1 . 1 . 1 . 1 . 1 . 1 . 1 . 1 . . . . Unauthorized Hacks 28 | . 11 . 4 . . 2 1 4 . 1 . . . . 1 3 . . . . . 1 . . . . . . . . . . Terminals 19 | . 8 . 3 . . 2 1 2 . . . . . . 1 2 . . . . . . . . . . . . . . . . Track 2 | . . . . . . . . 1 . . . . . . . 1 . . . . . . . . . . . . . . . . Botnet 4 | . 1 . . . . 2 . 1 . . . . . . . . . . . . . . . . . . . . . . . . Disrupt 1 | . . . . . . . . . . . . . . . . 1 . . . . . . . . . . . . . . . . Operators 1 | . 1 . . . . . . . . . . . . . . . . . . . . . . . . . . . . . . . Skim 8 | . 5 . 3 . . . . . . . . . . . . . . . . . . . . . . . . . . . . . Sabotage 1 | . 1 . . . . . . . . . . . . . . . . . . . . . . . . . . . . . . . Override 2 | . . . . . . . 1 . . . . . . . 1 . . . . . . . . . . . . . . . . . Fabricators . | . . . . . . . . . . . . . . . . . . . . . . . . . . . . . . . . . Repair Stations 2 | . . . . . . . . 1 . . . . . . . 1 . . . . . . . . . . . . . . . . Mechanics 1 | . . . . . . . . . . . . . . . . 1 . . . . . . . . . . . . . . . . Patch 1 | . . . . . . . . 1 . . . . . . . . . . . . . . . . . . . . . . . . Recycling Units 6 | . 3 . 1 . . . . . . 1 . . . . . . . . . . . 1 . . . . . . . . . . Reject 3 | . 1 . . . . . . . . 1 . . . . . . . . . . . 1 . . . . . . . . . . Tunnel 3 | . 2 . 1 . . . . . . . . . . . . . . . . . . . . . . . . . . . . . Scanalyzers . | . . . . . . . . . . . . . . . . . . . . . . . . . . . . . . . . . Garrison Access 1 | . . . . . . . . 1 . . . . . . . . . . . . . . . . . . . . . . . . Reprogram 1 | . . . . . . . . 1 . . . . . . . . . . . . . . . . . . . . . . . . Data Cores Recovered 1 | . . . . . . 1 . . . . . . . . . . . . . . . . . . . . . . . . . . Used . | . . . . . . . . . . . . . . . . . . . . . . . . . . . . . . . . . Hacking Detections 70 | . 6 . 7 1 3 2 2 7 2 2 . 2 2 4 1 5 . 4 2 1 2 2 . 1 2 1 2 3 2 . 2 . Full Trace Events 10 | . . . 1 . 1 . . . 2 . . 1 1 . . . . . 1 . . . . . . . 1 1 1 . . . Feedback Events 3 | . . . . . 1 . . . . . . . 1 . . . . . . . . . . . . . . 1 . . . . Corruption 3 | . . . . . 1 . . . . . . . 1 . . . . . . . . . . . . . . 1 . . . . Feedback Blocked . | . . . . . . . . . . . . . . . . . . . . . . . . . . . . . . . . . Robot Schematics Acquired 1 | . 1 . . . . . . . . . . . . . . . . . . . . . . . . . . . . . . . Robots Built . | . . . . . . . . . . . . . . . . . . . . . . . . . . . . . . . . . Authchips . | . . . . . . . . . . . . . . . . . . . . . . . . . . . . . . . . . Time . | . . . . . . . . . . . . . . . . . . . . . . . . . . . . . . . . . Total Robot Build Rating . | . . . . . . . . . . . . . . . . . . . . . . . . . . . . . . . . . Part Schematics Acquired 1 | . . . 1 . . . . . . . . . . . . . . . . . . . . . . . . . . . . . Parts Built . | . . . . . . . . . . . . . . . . . . . . . . . . . . . . . . . . . Authchips . | . . . . . . . . . . . . . . . . . . . . . . . . . . . . . . . . . Time . | . . . . . . . . . . . . . . . . . . . . . . . . . . . . . . . . . Total Part Build Rating . | . . . . . . . . . . . . . . . . . . . . . . . . . . . . . . . . . Part Studies Acquired 9 | . . . 1 . . . . 3 . 1 . . . 2 . . . . . . . . . . . . . 2 . . . . Parts Repaired 1 | . . . 1 . . . . . . . . . . . . . . . . . . . . . . . . . . . . . Time 64 | . . . 64 . . . . . . . . . . . . . . . . . . . . . . . . . . . . . Parts Recycled . | . . . . . . . . . . . . . . . . . . . . . . . . . . . . . . . . . Recycled Matter . | . . . . . . . . . . . . . . . . . . . . . . . . . . . . . . . . . Retrieved Matter . | . . . . . . . . . . . . . . . . . . . . . . . . . . . . . . . . . Retrieved Components 6 | . 1 . 1 . . . . . . 2 . . . . . . . . . . . 2 . . . . . . . . . . Parts Scanalyzed 2 | . . . 1 . . . . . . . . 1 . . . . . . . . . . . . . . . . . . . . Part Schematics Acquired 1 | . . . 1 . . . . . . . . . . . . . . . . . . . . . . . . . . . . . Parts Damaged 1 | . . . 1 . . . . . . . . . . . . . . . . . . . . . . . . . . . . . Bothacking | -11 -10 -10 -9 -9 -9 -8 -8 -8 -8 -7 -7 -7 -7 -6 -6 -5 -5 -5 -5 -4 -4 -3 -3 -2 -2 -2 -2 -1 -1 -1 -1 -1 ------------ Run | Yrd Mat Min Mat Sto Gar Mat Gar Mat Gar Fac Was Fac Gar Fac Gar Fac Gar Fac Gar Fac Gar Res Gar Res Gar Res Gar Acc Gar Acc Com Ac0 Used RIF Installer 13 | . . . . . 2 . 1 . 1 . . . 1 . 1 . 1 . 1 . 1 . 1 . 1 . 1 . 1 . . . Coupler Efficiency 1 | . . . . . 1 . . . . . . . . . . . . . . . . . . . . . . . . . . . Hotswap 1 | . . . . . . . . . . . . . . . . . 1 . . . . . . . . . . . . . . . Command Fork 1 | . . . . . . . . . . . . . . . . . . . . . . . . . 1 . . . . . . . Threat Obfuscator 2 | . . . . . . . . . . . . . 1 . . . . . . . 1 . . . . . . . . . . . Signal Jammer 1 | . . . . . . . . . . . . . . . 1 . . . . . . . . . . . . . . . . . Robot Detection 1 | . . . . . . . . . . . . . . . . . . . . . . . 1 . . . . . . . . . Watcher Feeds 1 | . . . . . . . . . . . . . . . . . . . 1 . . . . . . . . . . . . . Alert ID Control 1 | . . . . . . . . . . . . . . . . . . . . . . . . . . . 1 . . . . . Structural Interface 1 | . . . . . . . . . . . . . . . . . . . . . . . . . . . . . 1 . . . Program Shield 1 | . . . . . . . 1 . . . . . . . . . . . . . . . . . . . . . . . . . Autoassimilate 2 | . . . . . . 1 . . 1 . . . . . . . . . . . . . . . . . . . . . . . Robots Hacked 318 | . . . . . . . . . . . . . 11 5 13 9 12 4 21 . 27 24 22 . 22 2 35 4 30 51 26 . Non-combat 32 | . . . . . . . . . . . . . 2 3 . 6 . 1 . . . 3 1 . . 1 2 1 2 10 . . Combat 286 | . . . . . . . . . . . . . 9 2 13 3 12 3 21 . 27 21 21 . 22 1 33 3 28 41 26 . Autoassimilated 100 | . . . . . . . . . . . . . 5 1 4 . 2 2 9 . 6 6 11 . 6 1 13 1 7 13 13 . Robot Hacks Applied 243 | . . . . . . . . . . . . . 7 6 9 10 10 3 13 . 25 23 12 . 18 2 27 3 23 39 13 . parse_system 23 | . . . . . . . . . . . . . 1 1 . 2 . . 1 . 3 1 1 . 1 . 3 1 2 6 . . find_chute 3 | . . . . . . . . . . . . . . 1 . 2 . . . . . . . . . . . . . . . . drop_inventory 12 | . . . . . . . . . . . . . . 2 . 3 . 1 . . . 2 . . . 1 . . . 3 . . purge_threat 1 | . . . . . . . . . . . . . . . . . . . . . . . . . . . 1 . . . . . map_route 2 | . . . . . . . . . . . . . . . . . . . . . . 1 . . . . . . . 1 . . find_garrison 1 | . . . . . . . . . . . . . . . . . . . . . . 1 . . . . . . . . . . scatter_targeting 1 | . . . . . . . . . . . . . . . 1 . . . . . . . . . . . . . . . . . mark_system 1 | . . . . . . . . . . . . . . . . . . . . . . . 1 . . . . . . . . . spike_heat 1 | . . . . . . . . . . . . . . . . . . . . . . . . . 1 . . . . . . . amplify_resonance 20 | . . . . . . . . . . . . . 1 . 1 . . . 3 . 1 5 . . 3 . 3 . . 2 1 . reboot_system 21 | . . . . . . . . . . . . . . . 1 . 4 . 1 . 2 2 1 . 1 . 3 . 1 3 2 . overwrite_iff 11 | . . . . . . . . . . . . . 1 . . . . . . . 2 1 . . 3 . 2 . 1 1 . . formatsys_low 14 | . . . . . . . . . . . . . 2 1 . 1 . 1 . . . 2 . . . 1 2 . 2 2 . . formatsys_high 130 | . . . . . . . . . . . . . 2 1 6 2 6 1 8 . 17 8 9 . 9 . 13 2 16 20 10 . formatsys_deep 2 | . . . . . . . . . . . . . . . . . . . . . . . . . . . . . 1 1 . . Relay Couplers Released 223 | . . . . . 11 . 15 . 12 . . . 11 . 21 . 10 . 18 . 29 4 21 . 20 . 21 3 23 4 . . Machine Destruction 209 | . . . . . 11 . 15 . 12 . . . 11 . 18 . 10 . 18 . 29 . 21 . 20 . 21 . 23 . . . Programmers 14 | . . . . . . . . . . . . . . . 3 . . . . . . 4 . . . . . 3 . 4 . . Attached 104 | . . . . . . . . . . 1 . . 6 1 7 1 5 1 7 2 15 2 13 . 7 1 4 . 14 4 13 . Fabnet Peak Effective % . | . . . . . . . . . . . . . . . . . . . . . . . . . . . . . . . . . Robots Rewired 43 | . . . . . 3 . 3 . . . . . . 1 5 2 2 . . . 7 1 8 . . . 2 . 9 . . . Allies Hacked 11 | . . . . . . . . . 1 . . . . 2 . . . . . . . 1 . . 1 . . . 2 2 2 . Hacks Repelled . | . . . . . . . . . . . . . . . . . . . . . . . . . . . . . . . . . Allies | -11 -10 -10 -9 -9 -9 -8 -8 -8 -8 -7 -7 -7 -7 -6 -6 -5 -5 -5 -5 -4 -4 -3 -3 -2 -2 -2 -2 -1 -1 -1 -1 -1 -------- Run | Yrd Mat Min Mat Sto Gar Mat Gar Mat Gar Fac Was Fac Gar Fac Gar Fac Gar Fac Gar Fac Gar Res Gar Res Gar Res Gar Acc Gar Acc Com Ac0 Total Allies 343 | . . 2 . 2 6 4 4 . 7 . . . 10 4 15 5 10 4 19 . 30 18 28 . 18 2 34 3 43 40 31 4 Largest Group 30 | . . 2 . 2 5 7 3 3 7 . . . 6 9 13 15 11 9 23 19 25 25 19 19 21 16 19 20 30 26 16 7 Highest-Rated Group 2213 | . . 56 . 62 114 126 72 72 142 . . . 122 203 510 701 561 434 1031 870 1167 1234 1216 836 1151 908 1225 1294 1498 1410 2213 1172 Highest-Rated Ally 228 | . . 31 . 31 57 21 57 24 31 . . . 32 40 116 142 142 142 142 142 142 142 142 64 141 64 183 183 183 183 219 228 Total Orders 132 | . . . . . . . . . . . . . 1 2 5 1 3 2 21 1 17 5 2 . 15 2 11 2 8 3 31 . STAY 33 | . . . . . . . . . . . . . . . 2 . . . 3 . 4 . . . 4 . 2 . 3 . 15 . ROAM 1 | . . . . . . . . . . . . . . . . . . . . . . . . . . . . . . . 1 . FOLLOW 34 | . . . . . . . . . . . . . . . . . 1 1 5 . 7 . . . 6 . 3 . 1 . 10 . GUARD 17 | . . . . . . . . . . . . . . 1 1 . . . 1 . 4 2 2 . 2 . 2 1 . . 1 . AID 32 | . . . . . . . . . . . . . 1 1 2 1 2 . 3 1 2 3 . . 1 2 2 1 3 3 4 . DROP 4 | . . . . . . . . . . . . . . . . . . . 4 . . . . . . . . . . . . . PICKUP 10 | . . . . . . . . . . . . . . . . . . . 5 . . . . . 2 . 2 . 1 . . . COLLECT 1 | . . . . . . . . . . . . . . . . . . 1 . . . . . . . . . . . . . . Ally Attacks 2344 | . . 3 . 9 12 45 8 11 36 . . . 16 17 58 49 71 13 91 . 177 173 141 . 141 16 164 60 279 331 260 163 Total Damage 84649 | . . 20 . 125 192 1002 278 196 408 . . . 169 128 1958 2026 2727 379 2298 . 5554 5723 5109 . 4440 510 5872 2920 9126 13143 12907 7439 Kills 416 | . . . . 1 3 12 3 7 5 . . . 4 2 16 14 15 3 15 . 31 38 24 . 21 3 29 19 37 66 40 8 Allies Corrupted 39 | . . . . . . . . . 1 . . . . . . 1 2 . 1 . 1 6 . . 3 . 3 1 7 11 2 . Allies Melted 2 | . . . . . . . . . . . . . . . 1 . 1 . . . . . . . . . . . . . . . X0-1V1 Amusement Gains 223 | . 2 . . . 45 . 10 30 5 . . 10 . . 7 5 . . . . 18 . . . . . . . 15 10 20 46 Good Acts 206 | . 1 14 . 1 23 12 11 . 9 2 5 4 9 1 9 3 4 1 16 . 17 . 7 . 5 . 5 1 10 15 12 9 Bad Acts 112 | . . 17 6 2 4 2 5 . . 2 1 1 2 7 7 1 3 . 4 1 2 4 5 . 2 . 6 . 5 9 10 4 Intel | -11 -10 -10 -9 -9 -9 -8 -8 -8 -8 -7 -7 -7 -7 -6 -6 -5 -5 -5 -5 -4 -4 -3 -3 -2 -2 -2 -2 -1 -1 -1 -1 -1 ------- Run | Yrd Mat Min Mat Sto Gar Mat Gar Mat Gar Fac Was Fac Gar Fac Gar Fac Gar Fac Gar Fac Gar Res Gar Res Gar Res Gar Acc Gar Acc Com Ac0 Active Infowar (turns) 4428 | 36 1157 205 . . . . 248 169 1286 359 62 383 394 . . . . . . . . . 129 . . . . . . . . . Optics 3030 | . . . . . . . 248 169 1286 359 62 383 394 . . . . . . . . . 129 . . . . . . . . . Terrain 728 | 15 713 . . . . . . . . . . . . . . . . . . . . . . . . . . . . . . . Seismic 1398 | 36 1157 205 . . . . . . . . . . . . . . . . . . . . . . . . . . . . . . Jamming 13 | . . . . . . . . . . . 5 8 . . . . . . . . . . . . . . . . . . . . Robot Analysis Total 1 | . 1 . . . . . . . . . . . . . . . . . . . . . . . . . . . . . . . Derelict Logs Recovered . | . . . . . . . . . . . . . . . . . . . . . . . . . . . . . . . . . Drone Launches . | . . . . . . . . . . . . . . . . . . . . . . . . . . . . . . . . . Drone Recoveries . | . . . . . . . . . . . . . . . . . . . . . . . . . . . . . . . . . Exploration | -11 -10 -10 -9 -9 -9 -8 -8 -8 -8 -7 -7 -7 -7 -6 -6 -5 -5 -5 -5 -4 -4 -3 -3 -2 -2 -2 -2 -1 -1 -1 -1 -1 ------------- Run | Yrd Mat Min Mat Sto Gar Mat Gar Mat Gar Fac Was Fac Gar Fac Gar Fac Gar Fac Gar Fac Gar Res Gar Res Gar Res Gar Acc Gar Acc Com Ac0 Turns Passed 32178 | 109 1157 282 252 210 1084 321 813 169 1286 359 62 383 793 179 991 289 801 130 2100 176 1934 533 1051 42 1795 122 3105 486 2231 4202 4306 425 Spaces Moved 21495 | 108 1344 407 419 203 1039 508 1157 283 930 367 83 537 1184 301 1374 456 534 239 1313 63 1229 371 669 17 838 41 1036 175 746 1760 1680 84 Core 613 | 106 503 . . . 2 . 2 . . . . . . . . . . . . . . . . . . . . . . . . . Treads 5972 | 2 . . . . . . . . 202 . . . . . . . . . . . . . . . 253 41 1036 175 746 1760 1680 77 Legs 4252 | . . . . . . . . . 280 . . . . . . . . . 1031 63 1229 371 669 17 585 . . . . . . 7 Wheels 338 | . . . . 158 49 . . . . 131 . . . . . . . . . . . . . . . . . . . . . . Hover 530 | . . . . . . . . . . 203 83 130 . . . . . . 114 . . . . . . . . . . . . . Flight 9790 | . 841 407 419 45 988 508 1155 283 448 33 . 407 1184 301 1374 456 534 239 168 . . . . . . . . . . . . . Fastest Speed 29 | 50 37 37 34 37 34 32 30 30 30 40 52 29 29 29 29 29 29 32 32 115 115 115 113 176 110 240 240 245 245 158 151 151 Average Speed 109 | 52 43 44 35 78 39 33 30 30 88 69 61 37 29 29 29 29 90 32 112 115 116 115 118 176 178 240 264 245 248 223 219 153 Slowest Speed 360 | 160 200 180 37 90 150 34 100 30 190 130 120 97 94 29 85 29 162 32 230 115 360 115 180 176 240 240 325 245 250 246 250 174 Overloaded Moves 84 | . . . . . . . . . . . . . . . . . . . 82 . 2 . . . . . . . . . . . Propulsion Burnouts . | . . . . . . . . . . . . . . . . . . . . . . . . . . . . . . . . . Robots Hopped 57 | . 10 2 9 1 1 3 2 1 2 . . 1 . 5 12 7 . 1 . . . . . . . . . . . . . . Potential Cave-ins 30 | . . . . . . . . . . . . . . . . . . . . . . . . . . . . . . . 30 . Cave-ins Triggered 3 | . . . . . . . . . . . . . . . . . . . . . . . . . . . . . . . 3 . Teleports 1 | . . . . . . . . . . . . . . . . . . . . . . . . . . . . . . . . 1 Exploration Rate (%) 49 | 4 99 72 39 36 90 45 86 26 83 6 79 10 90 12 92 16 57 8 93 3 94 18 75 2 87 2 94 13 94 52 58 12 Regions Visited 32 Branch Regions 4 Pre-discovered Areas 3 | . 2 . 1 . . . . . . . . . . . . . . . . . . . . . . . . . . . . . Known Exits Taken 17 | . 1 1 1 1 . 1 . 1 . . . 1 . 1 . 1 . 1 . 1 . 1 . 1 . 1 . 1 . 1 1 . Unknown Exits Taken 1 | 1 . . . . . . . . . . . . . . . . . . . . . . . . . . . . . . . . Scrap Searched 1 | . . 1 . . . . . . . . . . . . . . . . . . . . . . . . . . . . . . Spaces Dug 256 | . 1 . 1 . 33 2 9 11 1 . . . 18 6 . . 9 . 4 . 18 . 1 . 12 . 4 1 14 . 105 6 Terrain Destroyed 609 | . 1 . 1 1 84 3 10 34 27 2 . . 69 6 85 . 37 . 4 . 18 . 1 . 16 . 9 2 17 11 150 21 Melee 59 | . . . 1 . 3 2 9 2 1 . . . 1 . . . 9 . 4 . 18 . . . 4 . 3 . 2 . . . Projectile 230 | . 1 . . 1 2 1 1 1 1 2 . . . . 6 . . . . . . . 1 . 12 . 6 2 15 11 150 17 AOE 316 | . . . . . 79 . . 31 25 . . . 68 6 79 . 28 . . . . . . . . . . . . . . . Terrain Rammed . | . . . . . . . . . . . . . . . . . . . . . . . . . . . . . . . . . Walls Destroyed . | . . . . . . . . . . . . . . . . . . . . . . . . . . . . . . . . . Machines Disabled . | . . . . . . . . . . . . . . . . . . . . . . . . . . . . . . . . . Actions | -11 -10 -10 -9 -9 -9 -8 -8 -8 -8 -7 -7 -7 -7 -6 -6 -5 -5 -5 -5 -4 -4 -3 -3 -2 -2 -2 -2 -1 -1 -1 -1 -1 --------- Run | Yrd Mat Min Mat Sto Gar Mat Gar Mat Gar Fac Was Fac Gar Fac Gar Fac Gar Fac Gar Fac Gar Res Gar Res Gar Res Gar Acc Gar Acc Com Ac0 Total 27723 | 136 1815 471 462 231 1445 598 1474 322 1190 446 91 674 1523 353 1806 582 759 290 1842 117 1613 466 891 29 1093 64 1301 230 1053 2002 2093 261 Wait 2283 | . 356 15 12 1 47 37 92 9 33 14 3 68 111 . 192 71 101 38 320 25 170 41 79 10 85 17 58 42 94 54 66 22 Move 21360 | 107 1323 402 403 200 1036 501 1152 280 926 367 82 535 1183 290 1355 441 533 237 1311 62 1228 370 668 17 837 41 1035 175 745 1759 1676 83 Hop 47 | . 10 2 6 1 1 3 2 1 1 . . 1 . 5 6 7 . 1 . . . . . . . . . . . . . . Pick Up 327 | 5 12 6 3 5 9 7 4 . 5 13 . 3 7 10 21 3 6 . 37 2 16 5 18 . 21 . 12 2 21 25 35 14 Fast Attach 174 | 5 . 3 5 3 11 2 6 3 18 10 4 11 4 2 13 3 7 . 2 . 18 3 11 . 6 . 4 . 5 4 9 2 Attach 136 | 1 12 1 3 1 6 1 . 1 5 5 1 5 2 3 3 1 2 1 7 2 4 3 8 2 6 . 6 2 5 8 12 17 Detach 34 | 1 9 . 2 1 1 . . . 3 3 . 2 2 . . . . 1 1 . . . . . 5 . . . . . 3 . Swap 388 | 1 16 3 . 4 30 8 26 7 23 13 1 3 27 7 31 3 6 3 13 2 23 2 20 . 14 2 12 . 16 23 26 23 Drop 359 | . 13 10 1 5 19 11 18 1 17 10 . 11 18 8 22 3 6 2 29 . 21 3 20 . 21 1 17 1 17 20 29 5 Fire 1502 | 16 64 29 9 8 117 26 43 18 87 6 . 26 45 14 31 26 32 7 43 . 56 37 54 . 77 3 87 8 128 106 204 95 Melee 424 | . . . 18 2 24 2 25 2 4 5 . 9 18 7 67 3 51 . 46 . 67 . . . 7 . 58 . 9 . . . Ram . | . . . . . . . . . . . . . . . . . . . . . . . . . . . . . . . . . Kick 2 | . . . . . . . . . . . . . . . . . . . . . . 2 . . . . . . . . . . Crush 9 | . . . . . . . . . . . . . . . . . . . . . . . . . . . . . . 3 6 . Escape Stasis 475 | . . . . . 75 . 83 . 60 . . . 97 . 47 15 15 . 24 . 10 . . . 14 . 12 . 12 . 11 . Rewire 85 | . . . . . 60 . 23 . . . . . . . . . . . . . . . 1 . . . . . 1 . . . Trap . | . . . . . . . . . . . . . . . . . . . . . . . . . . . . . . . . . Miscellaneous 118 | . . . . . 9 . . . 8 . . . 9 7 18 6 . . 9 24 . . 12 . . . . . . . 16 . Route ------- -11/Scrapyard -10/Materials (discovered 5 exits: *Mat x3 / *Min / *Sub) -10/Mines (discovered 4 exits: *Mat x2 / *Exi / Sub) -9/Materials (discovered 6 exits: Mat x2 / Min x2 / *Sto x2) -9/Storage -9/Garrison (discovered 3 exits: *Mat x3) -8/Materials (discovered 3 exits: Fac x2 / Gar) -8/Garrison (discovered 4 exits: *Fac x3 / *Mat) -8/Materials (discovered 2 exits: *Fac / Gar) -8/Garrison (discovered 3 exits: *Fac x3) -7/Factory -7/Waste -7/Factory (discovered 2 exits: Fac / Gar) -7/Garrison (discovered 3 exits: *Fac x3) -6/Factory (discovered 2 exits: *Fac / Gar) -6/Garrison (discovered 3 exits: *Fac x3) -5/Factory (discovered 3 exits: Upp x2 / Gar) -5/Garrison (discovered 3 exits: *Fac x3) -5/Factory -5/Garrison (discovered 3 exits: *Fac x3) -4/Factory -4/Garrison (discovered 3 exits: *Res x3) -3/Research -3/Garrison (discovered 3 exits: *Res x3) -2/Research -2/Garrison (discovered 3 exits: *Res x3) -2/Research -2/Garrison (discovered 3 exits: *Acc x3) -1/Access -1/Garrison (discovered 3 exits: *Acc x3) -1/Access (discovered 2 exits: Sur / *Com) -1/Command (discovered 3 exits: *Sur x2 / *Ac0) -1/Access_0 0b11 Command History --------- Turn | Location | Event 5 | -11/Scrapyard | Discovered new exit (range 15) 110 | -11/Scrapyard | Entered Materials 151 | -10/Materials | Discovered new exit (range 5) 320 | -10/Materials | Discovered new exit (range 13) 324 | -10/Materials | Build established: Mutant 438 | -10/Materials | Discovered new exit (range 5) 704 | -10/Materials | Discovered new exit (range 5) 844 | -10/Materials | Central database locked down 939 | -10/Materials | Loaded intel: 1 repair station location 970 | -10/Materials | Identified exit to Mines 970 | -10/Materials | Identified exit to Materials 970 | -10/Materials | Identified exit to Subcaves 1002 | -10/Materials | Loaded intel: 2 recycling unit locations 1004 | -10/Materials | Learned location of 2 exits from Mines 1041 | -10/Materials | Learned 2 Materials zone layouts 1155 | -10/Materials | Build established: Scavenger-Mutant 1228 | -10/Materials | Prayed at D.C.S.S. Altar Unit 1240 | -10/Materials | Inventory capacity permanently improved by X0-1V1 (+1; -100 max core) 1267 | -10/Materials | Entered Mines 1268 | -10/Mines | X0-1V1 added 0b10 threat records associated with you (minor) 1269 | -10/Mines | Identified exit to Exiles 1270 | -10/Mines | Core integrity permanently improved by X0-1V1 (+200) 1272 | -10/Mines | Sight range permanently improved by X0-1V1 (+1%; -150 max core) 1279 | -10/Mines | X0-1V1 sent hostile S-10 Pest (x3) 1283 | -10/Mines | X0-1V1 activates XOMVISION 1285 | -10/Mines | Deemed a non-threat by the Exiles lab entrance 1310 | -10/Mines | X0-1V1 sent you into danger 1321 | -10/Mines | X0-1V1 mutated your Propulsion slot to Weapon slot 1325 | -10/Mines | X0-1V1 sent hostile S-10 Pest (x4) 1365 | -10/Mines | Destroyed 7 combat bots 1472 | -10/Mines | X0-1V1 mutated your Utility slot to Power slot 1522 | -10/Mines | Found DCF Scrap (12 items) 1549 | -10/Mines | Entered Materials 1549 | -9/Materials | Evolved 2 slots: Propulsion x2 1550 | -9/Materials | Identified exit to Materials 1551 | -9/Materials | Identified exit to Mines 1571 | -9/Materials | Build established: Mutant 1684 | -9/Materials | Identified exit to Storage 1690 | -9/Materials | X0-1V1 upgraded hostiles (x1) 1740 | -9/Materials | Lost 3 parts (1p1n1w) 1744 | -9/Materials | Repaired Broken Imp. Flight Unit? 1758 | -9/Materials | X0-1V1 enhanced Transport squad support 1801 | -9/Materials | Entered Storage 1804 | -9/Storage | X0-1V1 sent you into danger 1927 | -9/Storage | Identified exit to Garrison 1988 | -9/Storage | Met a pair of Derelict thieves 2007 | -9/Storage | Core integrity fell below 50% 2011 | -9/Storage | Entered Garrison 2067 | -9/Garrison | Triggered checkpoint 2119 | -9/Garrison | Core integrity restored by X0-1V1 (+80) 2230 | -9/Garrison | Triggered checkpoint 2240 | -9/Garrison | Triggered checkpoint 2273 | -9/Garrison | Garrison Relay disabled 2343 | -9/Garrison | Triggered checkpoint 2344 | -9/Garrison | X0-1V1 vaporized surrounding terrain (radius 20) 2354 | -9/Garrison | Triggered checkpoint 2361 | -9/Garrison | X0-1V1 sent allied Chaos Knight (x1) 2372 | -9/Garrison | Core integrity restored by X0-1V1 (+80) 2383 | -9/Garrison | Garrison Relay disabled 2385 | -9/Garrison | Triggered checkpoint 2399 | -9/Garrison | Discovered exit to Materials (range 14) 2448 | -9/Garrison | X0-1V1 activates XOMVISION 2478 | -9/Garrison | X0-1V1 whisked you away to safety 2506 | -9/Garrison | Phase Generator disabled 2529 | -9/Garrison | Discovered exit to Materials (range 3) 2542 | -9/Garrison | X0-1V1 revealed exit location to -8/Materials 2636 | -9/Garrison | Core integrity restored by X0-1V1 (+80) 2673 | -9/Garrison | Triggered checkpoint 2710 | -9/Garrison | Garrison Relay disabled 2711 | -9/Garrison | X0-1V1 activates XOMVISION 2720 | -9/Garrison | Triggered checkpoint 2840 | -9/Garrison | Rescued a captive Derelict 2841 | -9/Garrison | Rescued a captive Derelict 2843 | -9/Garrison | Lost 3 parts (1n2w) 2906 | -9/Garrison | Triggered checkpoint 2917 | -9/Garrison | Core integrity restored by X0-1V1 (+52) 2934 | -9/Garrison | X0-1V1 activates XOMVISION 2991 | -9/Garrison | Core integrity restored by X0-1V1 (+87) 3005 | -9/Garrison | Triggered checkpoint 3005 | -9/Garrison | Triggered checkpoint 3023 | -9/Garrison | Installed Relay Interface Framework 3030 | -9/Garrison | Expanded RIF knowledge: Coupler Efficiency 3073 | -9/Garrison | Triggered checkpoint 3081 | -9/Garrison | Build established: Scavenger-Gunner 3092 | -9/Garrison | X0-1V1 activates XOMVISION 3095 | -9/Garrison | Entered Materials 3095 | -8/Materials | Accompanied by 4 allies 3095 | -8/Materials | Evolved 2 slots: Utility x2 3114 | -8/Materials | Identified exit to Factory 3114 | -8/Materials | X0-1V1 revealed exit location to -7/Factory 3128 | -8/Materials | X0-1V1 released a cloud of subatomizers 3139 | -8/Materials | Expanded RIF knowledge: Autoassimilate 3322 | -8/Materials | X0-1V1 foreshadows a heat wave 3332 | -8/Materials | X0-1V1 revealed exit location to -7/Factory 3342 | -8/Materials | X0-1V1 sent you to a vault 3388 | -8/Materials | Ambient heat levels rising (+10) 3414 | -8/Materials | Identified exit to Garrison 3416 | -8/Materials | Entered Garrison 3433 | -8/Garrison | Triggered checkpoint 3486 | -8/Garrison | Expanded RIF knowledge: Program Shield 3488 | -8/Garrison | Garrison Relay disabled 3522 | -8/Garrison | Triggered checkpoint 3555 | -8/Garrison | X0-1V1 activates XOMVISION 3568 | -8/Garrison | X0-1V1 sent allied Chaos Knight (x1) 3609 | -8/Garrison | Identified exit to Materials 3609 | -8/Garrison | X0-1V1 revealed exit location to -8/Materials 3612 | -8/Garrison | Triggered checkpoint 3642 | -8/Garrison | Garrison Relay disabled 3670 | -8/Garrison | Build established: Scavenger-Sprinter 3702 | -8/Garrison | X0-1V1 activates XOMVISION 3714 | -8/Garrison | Triggered checkpoint 3760 | -8/Garrison | X0-1V1 whisked you away to safety 3796 | -8/Garrison | Triggered checkpoint 3850 | -8/Garrison | Triggered checkpoint 3896 | -8/Garrison | System corruption reached 10% 3960 | -8/Garrison | Triggered checkpoint 4026 | -8/Garrison | Triggered checkpoint 4092 | -8/Garrison | System corruption reached 30% 4143 | -8/Garrison | Garrison Relay disabled 4229 | -8/Garrison | Entered Materials 4229 | -8/Materials | Accompanied by 3 allies 4337 | -8/Materials | Discovered exit to Factory (range 3) 4347 | -8/Materials | Identified exit to Garrison 4358 | -8/Materials | Lost 3 allies 4398 | -8/Materials | Entered Garrison 4409 | -8/Garrison | Core integrity fell below 50% 4484 | -8/Garrison | Triggered checkpoint 4545 | -8/Garrison | Rescued a captive Derelict 4546 | -8/Garrison | Rescued a captive Derelict 4675 | -8/Garrison | X0-1V1 sent allied G-47 Trooper (x5) 4676 | -8/Garrison | Build established: Scavenger-Skirmisher 4727 | -8/Garrison | Triggered checkpoint 4773 | -8/Garrison | Triggered checkpoint 4780 | -8/Garrison | Lost 6 allies 4809 | -8/Garrison | Destroyed 8 combat bots 4824 | -8/Garrison | Lost 5 parts (2p1n2w) 4871 | -8/Garrison | X0-1V1 destroyed Phase Generator 4871 | -8/Garrison | Phase Generator disabled 4910 | -8/Garrison | X0-1V1 activates XOMVISION 5050 | -8/Garrison | Build established: Scavenger-Mutant 5252 | -8/Garrison | Destroyed 7 combat bots 5257 | -8/Garrison | Expanded RIF knowledge: Autoassimilate 5271 | -8/Garrison | Discovered exit to Factory (range 8) 5382 | -8/Garrison | Garrison Relay disabled 5386 | -8/Garrison | X0-1V1 activates XOMVISION 5389 | -8/Garrison | Garrison Relay disabled 5506 | -8/Garrison | Discovered exit to Factory (range 10) 5552 | -8/Garrison | Weapon slot count temporarily expanded by X0-1V1 (+2) 5642 | -8/Garrison | Triggered checkpoint 5656 | -8/Garrison | Core integrity restored by X0-1V1 (+105) 5657 | -8/Garrison | Discovered exit to Factory (range 8) 5662 | -8/Garrison | Garrison Relay disabled 5684 | -8/Garrison | Entered Factory 5684 | -7/Factory | Evolved 2 slots: Utility x2 5691 | -7/Factory | X0-1V1 sent you to a vault 5713 | -7/Factory | Lost 9 parts (2p2n1u4w) 5769 | -7/Factory | X0-1V1 announced a LAN party 5839 | -7/Factory | Central database locked down 5993 | -7/Factory | Build established: Mutant 6043 | -7/Factory | Manually triggered Chute Trap 6043 | -7/Factory | Sucked down chute 6043 | -7/Factory | Entered Waste 6052 | -7/Waste | Spotted C-40 Crusher 6058 | -7/Waste | EMP discharged 6061 | -7/Waste | Spotted C-40 Crusher 6071 | -7/Waste | Spotted C-40 Crusher 6074 | -7/Waste | Spotted C-40 Crusher 6078 | -7/Waste | Spotted C-40 Crusher 6080 | -7/Waste | Discovered new exit (range 22) 6082 | -7/Waste | Crushed by Compactor (1 part destroyed, 1 dropped) 6085 | -7/Waste | Crushed by Compactor (1 part destroyed, 1 dropped) 6088 | -7/Waste | Crushed by Compactor (1 part destroyed, 2 dropped) 6090 | -7/Waste | Weapon slot count temporarily expanded by X0-1V1 (+1) 6095 | -7/Waste | Spotted C-40 Crusher 6105 | -7/Waste | Entered Factory 6119 | -7/Factory | Lost 5 parts (1p1n1u2w) 6283 | -7/Factory | Identified exit to Factory 6283 | -7/Factory | X0-1V1 revealed exit location to -6/Factory 6488 | -7/Factory | Identified exit to Garrison 6488 | -7/Factory | Entered Garrison 6490 | -7/Garrison | Build established: Sprinter 6512 | -7/Garrison | Triggered checkpoint 6558 | -7/Garrison | Garrison Relay disabled 6579 | -7/Garrison | Triggered checkpoint 6609 | -7/Garrison | Core integrity restored by X0-1V1 (+182) 6661 | -7/Garrison | Discovered exit to Factory (range 20) 6668 | -7/Garrison | Expanded RIF knowledge: Threat Obfuscation 6770 | -7/Garrison | Triggered checkpoint 6806 | -7/Garrison | Phase Generator disabled 6812 | -7/Garrison | Learned Factory security intel 6834 | -7/Garrison | Garrison Relay disabled 6846 | -7/Garrison | X0-1V1 revealed exit location to -6/Factory 6850 | -7/Garrison | Discovered exit to Factory (range 16) 6903 | -7/Garrison | Build established: Scavenger-Sprinter 6950 | -7/Garrison | Triggered checkpoint 6968 | -7/Garrison | Triggered checkpoint 7037 | -7/Garrison | System corruption reached 10% 7088 | -7/Garrison | Triggered checkpoint 7098 | -7/Garrison | Garrison Relay disabled 7276 | -7/Garrison | Build established: Bothacker-Sprinter 7281 | -7/Garrison | Entered Factory 7281 | -6/Factory | Accompanied by 6 allies 7281 | -6/Factory | Evolved 2 slots: Utility x2 7284 | -6/Factory | X0-1V1 vaporized surrounding terrain (radius 21) 7308 | -6/Factory | Found Exp. Targeting Computer 7337 | -6/Factory | Discovered new exit (range 12) 7338 | -6/Factory | X0-1V1 mutated your Weapon slot to Utility slot 7372 | -6/Factory | X0-1V1 vaporized surrounding terrain (radius 21) 7382 | -6/Factory | X0-1V1 rewrote Virus 4c IFF filter 7437 | -6/Factory | Identified exit to Garrison 7460 | -6/Factory | Entered Garrison 7460 | -6/Garrison | Accompanied by 6 allies 7494 | -6/Garrison | Phase Generator disabled 7519 | -6/Garrison | X0-1V1 sent you into danger 7534 | -6/Garrison | Triggered checkpoint 7546 | -6/Garrison | Triggered checkpoint 7554 | -6/Garrison | Garrison Relay disabled 7605 | -6/Garrison | Lost 5 allies 7670 | -6/Garrison | Discovered new exit (range 14) 7670 | -6/Garrison | Spotted B-75 Beast 7670 | -6/Garrison | X0-1V1 sent you into danger 7677 | -6/Garrison | Rewired B-86 Titan 7680 | -6/Garrison | Allies destroyed B-75 Beast 7826 | -6/Garrison | X0-1V1 sent you into danger 7835 | -6/Garrison | Garrison Relay disabled 7846 | -6/Garrison | Triggered checkpoint 7934 | -6/Garrison | Garrison Relay disabled 7976 | -6/Garrison | X0-1V1 activates XOMVISION 8065 | -6/Garrison | Found Relay Coupler [Proto] 8066 | -6/Garrison | Found Relay Coupler [Proto] 8068 | -6/Garrison | Found Relay Coupler [Proto] 8071 | -6/Garrison | Found Relay Coupler [Proto] 8141 | -6/Garrison | Identified exit to Factory 8154 | -6/Garrison | Build established: Botlord-Sprinter 8162 | -6/Garrison | Triggered checkpoint 8196 | -6/Garrison | Spotted Executioner 8196 | -6/Garrison | Spotted Executioner 8208 | -6/Garrison | Expanded RIF knowledge: Signal Jamming 8228 | -6/Garrison | Discovered exit to Factory (range 62) 8228 | -6/Garrison | Discovered exit to Factory (range 15) 8228 | -6/Garrison | Discovered exit to Factory (range 53) 8289 | -6/Garrison | Core integrity restored by X0-1V1 (+208) 8328 | -6/Garrison | Garrison Relay disabled 8451 | -6/Garrison | Entered Factory 8451 | -5/Factory | Accompanied by 11 allies 8451 | -5/Factory | Evolved 2 slots: Utility x2 8519 | -5/Factory | X0-1V1 activates XOMVISION 8520 | -5/Factory | Identified exit to Upper Caves 8647 | -5/Factory | Garrison activated, responded to threat 8706 | -5/Factory | Identified exit to Garrison 8722 | -5/Factory | Lost 10 allies 8740 | -5/Factory | Entered Garrison 8740 | -5/Garrison | Accompanied by 6 allies 8758 | -5/Garrison | Discovered new exit (range 52) 8758 | -5/Garrison | Discovered new exit (range 47) 8758 | -5/Garrison | Discovered new exit (range 55) 8783 | -5/Garrison | System corruption reached 10% 8787 | -5/Garrison | Triggered checkpoint 8845 | -5/Garrison | Lost 3 allies 8849 | -5/Garrison | Garrison Relay disabled 8894 | -5/Garrison | Triggered checkpoint 8906 | -5/Garrison | Triggered checkpoint 8946 | -5/Garrison | Lost 3 allies 8952 | -5/Garrison | Lost 3 parts (1p1n1w) 9043 | -5/Garrison | Triggered checkpoint 9077 | -5/Garrison | Garrison Relay disabled 9120 | -5/Garrison | Expanded RIF knowledge: Hotswap 9233 | -5/Garrison | Build established: Botlord-Mutant 9307 | -5/Garrison | Triggered checkpoint 9338 | -5/Garrison | Garrison Relay disabled 9541 | -5/Garrison | Entered Factory 9541 | -5/Factory | Accompanied by 6 allies 9656 | -5/Factory | Identified exit to Garrison 9671 | -5/Factory | Entered Garrison 9671 | -5/Garrison | Accompanied by 9 allies 9688 | -5/Garrison | Triggered checkpoint 9713 | -5/Garrison | Garrison Relay disabled 9813 | -5/Garrison | X0-1V1 destroyed Phase Generator 9813 | -5/Garrison | Phase Generator disabled 9932 | -5/Garrison | Triggered checkpoint 9941 | -5/Garrison | Triggered checkpoint 10149 | -5/Garrison | Triggered checkpoint 10345 | -5/Garrison | Garrison Relay disabled 10375 | -5/Garrison | Identified exit to Factory 10375 | -5/Garrison | X0-1V1 revealed exit location to -4/Factory 10393 | -5/Garrison | Triggered checkpoint 10437 | -5/Garrison | Core integrity restored by X0-1V1 (+245) 10606 | -5/Garrison | X0-1V1 activates XOMVISION 10649 | -5/Garrison | Discovered exit to Factory (range 13) 10759 | -5/Garrison | Triggered checkpoint 10788 | -5/Garrison | Triggered checkpoint 10912 | -5/Garrison | X0-1V1 mutated your Weapon slot to Utility slot 10950 | -5/Garrison | X0-1V1 rewrote Soldier 6f IFF filter 11072 | -5/Garrison | Triggered checkpoint 11117 | -5/Garrison | Garrison Relay disabled 11216 | -5/Garrison | Spotted B-75 Beast 11290 | -5/Garrison | Expanded RIF knowledge: Watcher Feeds 11312 | -5/Garrison | Discovered exit to Factory (range 11) 11313 | -5/Garrison | Triggered checkpoint 11335 | -5/Garrison | Garrison Relay disabled 11352 | -5/Garrison | Found embedded Infiltrators 11410 | -5/Garrison | Allies destroyed B-75 Beast 11444 | -5/Garrison | Lost 4 allies 11482 | -5/Garrison | X0-1V1 activates XOMVISION 11534 | -5/Garrison | Found Relay Coupler [Proto] 11537 | -5/Garrison | Found Relay Coupler [Proto] 11540 | -5/Garrison | Found Relay Coupler [Proto] 11543 | -5/Garrison | Found Relay Coupler [Proto] 11728 | -5/Garrison | X0-1V1 vaporized surrounding terrain (radius 19) 11771 | -5/Garrison | Entered Factory 11771 | -4/Factory | Accompanied by 19 allies 11771 | -4/Factory | Evolved 2 slots: Utility x2 11833 | -4/Factory | Identified exit to Garrison 11947 | -4/Factory | Entered Garrison 11947 | -4/Garrison | Accompanied by 19 allies 11976 | -4/Garrison | X0-1V1 rewrote Virus 6a IFF filter 12022 | -4/Garrison | Triggered checkpoint 12038 | -4/Garrison | Garrison Relay disabled 12094 | -4/Garrison | Spotted B-86 Titan 12094 | -4/Garrison | Triggered checkpoint 12137 | -4/Garrison | X0-1V1 activates XOMVISION 12163 | -4/Garrison | Triggered checkpoint 12170 | -4/Garrison | Triggered checkpoint 12184 | -4/Garrison | Triggered checkpoint 12224 | -4/Garrison | Lost 16 allies 12227 | -4/Garrison | Lost 6 parts (1p1n4u) 12306 | -4/Garrison | X0-1V1 destroyed Phase Generator 12306 | -4/Garrison | Phase Generator disabled 12344 | -4/Garrison | Triggered checkpoint 12351 | -4/Garrison | Garrison Relay disabled 12379 | -4/Garrison | Discovered new exit (range 14) 12475 | -4/Garrison | Triggered checkpoint 12528 | -4/Garrison | Expanded RIF knowledge: Threat Obfuscation 12539 | -4/Garrison | Garrison Relay disabled 12625 | -4/Garrison | Discovered new exit (range 11) 12652 | -4/Garrison | Triggered checkpoint 12669 | -4/Garrison | Triggered checkpoint 12680 | -4/Garrison | Garrison Relay disabled 12849 | -4/Garrison | Spotted B-86 Titan 12867 | -4/Garrison | X0-1V1 activates XOMVISION 13009 | -4/Garrison | Identified exit to Research 13009 | -4/Garrison | X0-1V1 revealed exit location to -3/Research 13195 | -4/Garrison | Triggered checkpoint 13295 | -4/Garrison | Learned Research security intel 13301 | -4/Garrison | Triggered checkpoint 13316 | -4/Garrison | Garrison Relay disabled 13398 | -4/Garrison | Garrison Relay disabled 13511 | -4/Garrison | Triggered checkpoint 13574 | -4/Garrison | Garrison Relay disabled 13881 | -4/Garrison | Entered Research 13881 | -3/Research | Accompanied by 25 allies 13881 | -3/Research | Evolved 2 slots: Utility x2 13968 | -3/Research | X0-1V1 vaporized surrounding terrain (radius 20) 13969 | -3/Research | Spotted B-86 Titan 13977 | -3/Research | Rewired B-86 Titan 14009 | -3/Research | Found Gamma Bomb Array 14012 | -3/Research | Found Gamma Bomb Array 14050 | -3/Research | Lost 3 allies 14131 | -3/Research | First assault squad dispatched 14269 | -3/Research | Lost 8 allies 14289 | -3/Research | Garrison activated, responded to threat 14314 | -3/Research | X0-1V1 sent you into danger 14349 | -3/Research | Identified exit to Garrison 14350 | -3/Research | Lost 6 allies 14391 | -3/Research | X0-1V1 added 0b10 threat records associated with you (considerable) 14414 | -3/Research | Entered Garrison 14414 | -3/Garrison | Accompanied by 13 allies 14428 | -3/Garrison | Lost 6 allies 14454 | -3/Garrison | Phase Generator disabled 14550 | -3/Garrison | Triggered checkpoint 14565 | -3/Garrison | Garrison Relay disabled 14606 | -3/Garrison | Rewired Executioner 14610 | -3/Garrison | Rewired Executioner 14688 | -3/Garrison | Allies destroyed Executioner 14725 | -3/Garrison | Lost 3 allies 14736 | -3/Garrison | Spotted B-86 Titan 14737 | -3/Garrison | Autoassimilated Titan 8b with RIF 14903 | -3/Garrison | Spotted B-86 Titan 14908 | -3/Garrison | Triggered checkpoint 14909 | -3/Garrison | Imp. Thunder Leg reconfigured into Item Mimic 14922 | -3/Garrison | Triggered checkpoint 14965 | -3/Garrison | Lost 9 allies 15000 | -3/Garrison | Triggered checkpoint 15018 | -3/Garrison | Discovered new exit (range 18) 15018 | -3/Garrison | Discovered new exit (range 62) 15018 | -3/Garrison | Discovered new exit (range 76) 15035 | -3/Garrison | Garrison Relay disabled 15119 | -3/Garrison | X0-1V1 activates XOMVISION 15122 | -3/Garrison | Triggered checkpoint 15131 | -3/Garrison | Garrison Relay disabled 15162 | -3/Garrison | Triggered checkpoint 15180 | -3/Garrison | Triggered checkpoint 15196 | -3/Garrison | Garrison Relay disabled 15247 | -3/Garrison | Expanded RIF knowledge: Robot Detection 15458 | -3/Garrison | X0-1V1 mutated your Utility slot to Weapon slot 15465 | -3/Garrison | Entered Research 15465 | -2/Research | Accompanied by 19 allies 15465 | -2/Research | Evolved 2 slots: Utility x2 15497 | -2/Research | Identified exit to Garrison 15507 | -2/Research | Entered Garrison 15507 | -2/Garrison | Accompanied by 19 allies 15525 | -2/Garrison | Triggered checkpoint 15545 | -2/Garrison | Garrison Relay disabled 15667 | -2/Garrison | Spotted B-90 Cyclops 15669 | -2/Garrison | Triggered checkpoint 15701 | -2/Garrison | Allies destroyed B-90 Cyclops 15729 | -2/Garrison | Triggered checkpoint 15732 | -2/Garrison | Discovered new exit (range 2) 15732 | -2/Garrison | X0-1V1 whisked you away to safety 15760 | -2/Garrison | Triggered checkpoint 15762 | -2/Garrison | Lost 10 allies 15830 | -2/Garrison | Lost 3 allies 15842 | -2/Garrison | Garrison Relay disabled 16083 | -2/Garrison | Triggered checkpoint 16171 | -2/Garrison | Expanded RIF knowledge: Command Fork 16191 | -2/Garrison | Triggered checkpoint 16208 | -2/Garrison | Garrison Relay disabled 16236 | -2/Garrison | Garrison Relay disabled 16432 | -2/Garrison | Discovered new exit (range 13) 16595 | -2/Garrison | X0-1V1 mutated your Utility slot to Weapon slot 16934 | -2/Garrison | Discovered new exit (range 16) 16969 | -2/Garrison | Triggered checkpoint 17012 | -2/Garrison | Lost 4 allies 17125 | -2/Garrison | Garrison Relay disabled 17302 | -2/Garrison | Entered Research 17302 | -2/Research | Accompanied by 15 allies 17407 | -2/Research | Identified exit to Garrison 17424 | -2/Research | Entered Garrison 17424 | -2/Garrison | Accompanied by 16 allies 17518 | -2/Garrison | X0-1V1 sent hostile B-90 Cyclops (x1) 17519 | -2/Garrison | Lost 10 allies 17528 | -2/Garrison | Spotted B-90 Cyclops 17543 | -2/Garrison | Allies destroyed B-90 Cyclops 17554 | -2/Garrison | Triggered checkpoint 17599 | -2/Garrison | Lost 3 allies 17643 | -2/Garrison | System corruption reached 10% 17649 | -2/Garrison | Garrison Relay disabled 17747 | -2/Garrison | Heavy support dispatched to Access 17793 | -2/Garrison | Heavy support dispatched to Access 17962 | -2/Garrison | Triggered checkpoint 17964 | -2/Garrison | Spotted B-90 Cyclops 17984 | -2/Garrison | Triggered checkpoint 17999 | -2/Garrison | Allies destroyed B-90 Cyclops 18017 | -2/Garrison | Lost 3 allies 18091 | -2/Garrison | Lost 5 allies 18114 | -2/Garrison | Triggered checkpoint 18224 | -2/Garrison | Triggered checkpoint 18249 | -2/Garrison | Discovered new exit (range 8) 18388 | -2/Garrison | Garrison Relay disabled 18450 | -2/Garrison | Heavy support dispatched to Access 18649 | -2/Garrison | Discovered new exit (range 15) 18673 | -2/Garrison | Expanded RIF knowledge: Alert ID Control 18744 | -2/Garrison | Garrison Relay disabled 18784 | -2/Garrison | H-XX Assembler disabled 19339 | -2/Garrison | Rescued a captive Derelict 19341 | -2/Garrison | Rescued a captive Derelict 19894 | -2/Garrison | Garrison Relay disabled 20330 | -2/Garrison | Discovered new exit (range 16) 20352 | -2/Garrison | Triggered checkpoint 20407 | -2/Garrison | Garrison Relay disabled 20529 | -2/Garrison | Entered Access 20529 | -1/Access | Accompanied by 19 allies 20529 | -1/Access | Evolved 2 slots: Propulsion x1, Utility x1 20626 | -1/Access | Lost 3 allies 20973 | -1/Access | Identified exit to Garrison 21015 | -1/Access | Entered Garrison 21015 | -1/Garrison | Accompanied by 16 allies 21073 | -1/Garrison | Triggered checkpoint 21161 | -1/Garrison | Rewired Striker 21171 | -1/Garrison | Rewired Striker 21190 | -1/Garrison | Lost 8 allies 21264 | -1/Garrison | Garrison Relay disabled 21373 | -1/Garrison | Triggered checkpoint 21376 | -1/Garrison | Spotted B-99 Colossus 21405 | -1/Garrison | Allies destroyed B-99 Colossus 21428 | -1/Garrison | Identified exit to Access 21428 | -1/Garrison | X0-1V1 revealed exit location to -1/Access 21456 | -1/Garrison | Lost 14 allies 21507 | -1/Garrison | Triggered checkpoint 21517 | -1/Garrison | Triggered checkpoint 21521 | -1/Garrison | Weapon slot count temporarily expanded by X0-1V1 (+1) 21765 | -1/Garrison | X0-1V1 destroyed Phase Generator 21765 | -1/Garrison | Phase Generator disabled 21927 | -1/Garrison | Triggered checkpoint 21936 | -1/Garrison | Assimilated Heavy ARC 10a with formatsys_deep 21963 | -1/Garrison | Garrison Relay disabled 21970 | -1/Garrison | System corruption reached 10% 22082 | -1/Garrison | Rescued a captive Derelict 22082 | -1/Garrison | Rescued a captive Derelict 22228 | -1/Garrison | X0-1V1 vaporized surrounding terrain (radius 22) 22229 | -1/Garrison | Garrison Relay disabled 22252 | -1/Garrison | Discovered exit to Access (range 16) 22631 | -1/Garrison | Discovered exit to Access (range 10) 22646 | -1/Garrison | Triggered checkpoint 22669 | -1/Garrison | Garrison Relay disabled 22677 | -1/Garrison | Triggered checkpoint 22742 | -1/Garrison | Expanded RIF knowledge: Structural Interface 22767 | -1/Garrison | Lost 8 allies 22969 | -1/Garrison | Garrison Relay disabled 22992 | -1/Garrison | X0-1V1 mutated your Weapon slot to Propulsion slot 23002 | -1/Garrison | X0-1V1 activates XOMVISION 23246 | -1/Garrison | Entered Access 23246 | -1/Access | Accompanied by 22 allies 23850 | -1/Access | Assimilated Heavy ARC 10b with formatsys_deep 24044 | -1/Access | Lost 10 allies 24409 | -1/Access | Lost 5 allies 24521 | -1/Access | Lost 5 allies 24619 | -1/Access | Found Exp. EM Disruption Field 24621 | -1/Access | P-80 Master assimilated allied Artificer 10a 24734 | -1/Access | Lost 3 allies 25174 | -1/Access | Lost 7 allies 25337 | -1/Access | X0-1V1 sent you to a vault 25351 | -1/Access | Found Alien Artifact 25355 | -1/Access | Found Zero-point Reactor 25380 | -1/Access | Found Prototype Launcher 25380 | -1/Access | Identified Containment Facilitator 25393 | -1/Access | Found Unknown Protection 25393 | -1/Access | Identified Adv. Powered Armor 25414 | -1/Access | Found Prototype Device 25414 | -1/Access | Identified Exp. Actuator Array 25630 | -1/Access | Lost 4 allies 25631 | -1/Access | Energy Cycler disabled 25719 | -1/Access | Lost 3 allies 26547 | -1/Access | X0-1V1 redirected Transport squads to designated parking area 26587 | -1/Access | Identified exit to Command 26587 | -1/Access | X0-1V1 revealed exit location to -1/Command 26636 | -1/Access | X0-1V1 mutated your Weapon slot to Propulsion slot 27083 | -1/Access | Identified exit to Surface 27083 | -1/Access | X0-1V1 revealed exit location to -0/Surface 27135 | -1/Access | Lost 3 allies 27286 | -1/Access | X0-1V1 mutated your Propulsion slot to Weapon slot 27448 | -1/Access | Entered Command 27448 | -1/Command | Accompanied by 4 allies 28281 | -1/Command | Lost 5 allies 28555 | -1/Command | X0-1V1 rewrote Overseer 10b IFF filter 28684 | -1/Command | Spotted Striker 28704 | -1/Command | Allies destroyed Striker 28737 | -1/Command | Spotted Executioner 28738 | -1/Command | Autoassimilated Executioner with RIF 28744 | -1/Command | X0-1V1 activates XOMVISION 28745 | -1/Command | Spotted Executioner 28746 | -1/Command | Autoassimilated Executioner with RIF 28756 | -1/Command | Lost 5 allies 28756 | -1/Command | Spotted B-99 Colossus 28768 | -1/Command | Assimilated Colossus 10a with formatsys_high 28812 | -1/Command | Spotted Alpha 7 28813 | -1/Command | Autoassimilated Alpha 7 with RIF 28884 | -1/Command | Spotted Alpha 7 28884 | -1/Command | Spotted Striker 28884 | -1/Command | Spotted Executioner 28884 | -1/Command | Spotted Executioner 28885 | -1/Command | Autoassimilated Striker with RIF 28885 | -1/Command | Autoassimilated Alpha 7 with RIF 28892 | -1/Command | Assimilated Executioner with formatsys_high 28892 | -1/Command | Assimilated Executioner with formatsys_high 28909 | -1/Command | Spotted B-99 Colossus 28912 | -1/Command | Assimilated Colossus 10b with formatsys_high 28983 | -1/Command | X0-1V1 sent you to a vault 29298 | -1/Command | Found Exp. EM Disruption Field 29524 | -1/Command | Identified exit to Access_0 29524 | -1/Command | X0-1V1 revealed exit location to -1/Access_0 29561 | -1/Command | Spotted B-99 Colossus 29562 | -1/Command | Autoassimilated Colossus 10c with RIF 29603 | -1/Command | X0-1V1 activates XOMVISION 29635 | -1/Command | Spotted M Guard 29635 | -1/Command | Spotted M Guard 29636 | -1/Command | Autoassimilated M Guard with RIF 29636 | -1/Command | Autoassimilated M Guard with RIF 29639 | -1/Command | Spotted Combat Programmer 29645 | -1/Command | Spotted Combat Programmer 29648 | -1/Command | Allies destroyed Combat Programmer 29649 | -1/Command | Allies destroyed Combat Programmer 29792 | -1/Command | Met MAIN.C 29816 | -1/Command | Allies destroyed MAIN.C Shell 29816 | -1/Command | 0b10 Conduit disabled 29817 | -1/Command | MAIN.C activated Command garrisons 29832 | -1/Command | Destroyed MAIN.C 29854 | -1/Command | Lost 3 allies 29860 | -1/Command | Identified Transdimensional Reconstructor 29860 | -1/Command | Discovered exit to Surface (range 46) 29860 | -1/Command | Discovered exit to Surface (range 96) 29860 | -1/Command | Extracted map data and part IDs from MAIN.C's data core 29931 | -1/Command | Master 10a assimilated hostile H-81 Overseer 30016 | -1/Command | Spotted B-99 Colossus 30018 | -1/Command | Assimilated Colossus 10d with formatsys_high 30423 | -1/Command | X0-1V1 mutated your Weapon slot to Propulsion slot 30672 | -1/Command | Found Exp. System Purifier 30680 | -1/Command | Found Exp. Transmission Jammer 30684 | -1/Command | Found Exp. Phase Shifter 30689 | -1/Command | Found Zero-point Reactor 30705 | -1/Command | Found Hyp. Multirail 30710 | -1/Command | Found Vortex Chain Reactor 31435 | -1/Command | Crushed by falling debris 31441 | -1/Command | Crushed by falling debris 31539 | -1/Command | Build established: Commander-Mutant 31597 | -1/Command | Crushed by falling debris 31605 | -1/Command | Allies destroyed Alpha 7 31669 | -1/Command | X0-1V1 rewrote Overseer 10c IFF filter 31754 | -1/Command | Entered Access_0 31754 | -1/Access_0 | Accompanied by 7 allies 31756 | -1/Access_0 | Met Architect 31769 | -1/Access_0 | Found Multirail 31780 | -1/Access_0 | Architect warped through subspace 31784 | -1/Access_0 | Allies destroyed A8 31810 | -1/Access_0 | X0-1V1 sent you into danger 31825 | -1/Access_0 | Lost 3 allies 31838 | -1/Access_0 | Spotted Enhanced Programmer 31871 | -1/Access_0 | Spotted Enhanced Programmer 31893 | -1/Access_0 | Architect warped through subspace 31911 | -1/Access_0 | Found Exp. Thermal Shield 31935 | -1/Access_0 | Spotted Enhanced Programmer 31937 | -1/Access_0 | Architect warped through subspace 31944 | -1/Access_0 | Allies destroyed Enhanced Programmer 31987 | -1/Access_0 | Subspace Access Node disabled 31998 | -1/Access_0 | Spotted Enhanced Programmer 31999 | -1/Access_0 | Lost 3 allies 31999 | -1/Access_0 | Destroyed Enhanced Programmer 32004 | -1/Access_0 | X0-1V1 sent allied Striker (x2) 32016 | -1/Access_0 | Found Exp. Targeting Computer 32032 | -1/Access_0 | Architect warped through subspace 32036 | -1/Access_0 | X0-1V1 activates XOMVISION 32059 | -1/Access_0 | Architect warped through subspace 32059 | -1/Access_0 | Core integrity fell below 50% 32067 | -1/Access_0 | Found Thermal Barrier 32079 | -1/Access_0 | Spotted Enhanced Programmer 32085 | -1/Access_0 | Destroyed Enhanced Programmer 32091 | -1/Access_0 | Weapon slot count temporarily expanded by X0-1V1 (+1) 32091 | -1/Access_0 | Spotted Enhanced Programmer 32098 | -1/Access_0 | Spotted Enhanced Programmer 32118 | -1/Access_0 | Destroyed Enhanced Programmer 32118 | -1/Access_0 | Destroyed Enhanced Programmer 32124 | -1/Access_0 | Spotted Enhanced Programmer 32139 | -1/Access_0 | X0-1V1 sent allied G-73 Enforcer (x2) 32164 | -1/Access_0 | Core integrity fell below 20% 32164 | -1/Access_0 | Warped through subspace to slip node 32164 | -1/Access_0 | Discovered exit to Surface (range 8) 32179 | *** | Establishing 0b11! Last Messages --------------- 32156_ Enh. Armored Heavy Treads destroyed. 32157_ Acquired 5 matter. 32157_ HV Slug penetrates Enhanced Programmer. 32157_ Enhanced Programmer suffers critical hit (Destroy). 32157_ Destroyed Adv. Remote Force Field. 32158_ Acquired 12 matter. 32158_ Quantum Shear penetrates Wall. 32158_ Penetrated by Quantum Shear. 32159_ Hyp. Railgun destroyed. 32161_ Acquired 10 matter. 32161_ Slug penetrates Enhanced Programmer. 32162_ Acquired 1 matter. 32162_ Acquired 13 matter. 32164_ System corrupted: Component data lost. 32164_ Warped through subspace, drawn to slip node. 32164_ EXIT=FOUND: SURFACE 32165_ Exp. System Purifier purges 1% system corruption (6%). 32165_ A0_RES: I have more important things to do than play hide-and-seek. Deal with this piece of junk if it returns. 32170_ Exp. System Purifier purges 1% system corruption (5%). Map ----- +----------------------------------------------------+ | | | | | | | | | | | | | | | | | | | | | | | | | | | | | | | | | ?????????????????????????????????????????????????? | | ?????????????????????????????????????????????????? | | ?????????????????????????????????????????????????? | | ?????????????????????????????????????????????????? | | ?????????????????????????????????????????????????? | | ?????????????????????????????????????????????????? | | ????????????????????????###??????????????????????? | | ???????????????????????## ##?????????????????????? | | ???????????????????????# #?????????????????????? | | ???????????????????????# @ #?????????????????????? | | ??????????????????????## #?????????????????????? | | ??????????????????????# #?????????????????????? | | ??????????????????????# ##?????????????????????? | | ??????????????????????## #?????????????????????? | | ??????????????????????# #?????????????????????? | | ??????????????????????# ##?????????????????????? | | ??????????????????????# ! #?????????????????????? | | ??????????????????????# ##?????????????????????? | | ??????????????????????## #??????????????????????? | | ???????????????????????####??????????????????????? | | ?????????????????????????????????????????????????? | | ?????????????????????????????????????????????????? | | ?????????????????????????????????????????????????? | | ?????????????????????????????????????????????????? | | ?????????????????????????????????????????????????? | | ?????????????????????????????????????????????????? | | ?????????????????????????????????????????????????? | | ?????????????????????????????????????????????????? | | ?????????????????????????????????????????????????? | | ?????????????????????????????????????????????????? | | ?????????????????????????????????????????????????? | | ?????????????????????????????????????????????????? | | ?????????????????????????????????????????????????? | | ?????????????????????????????????????????????????? | +----------------------------------------------------+ Best States ------------- Heat Dissipation 166 Energy Generation 66 Energy Capacity 1850 Matter Stores 1100 Matter Capacity 1100 Sight Range 24 Terrain Scan Range 16 Terrain Scan Density 10 Jamming Range 16 Additional Mass Support 12 Base Temperature (-) 200 EM Shielding 2 Armor Coverage 450 Resistance: KI 25 Resistance: TH 50 Point Defense Rating 240 Phase Shifting 20 Evasion (%) 71 Targeting Accuracy 12 Melee Accuracy 6 Target Analysis 8 Armor Integrity Analysis 40 Recoil Reduction 6 Particle Charging 25 Offensive Hacking 10 Defensive Hacking 16 Relay Coupler Types 9 Relay Coupler Value 559 Item Schematics ----------------- Imp. Flight Unit | -9/Materials | Scanalyzed Robot Schematics ------------------ M-13 Machinist | -10/Materials | Hacked Fabricated ------------ Nothing Repaired ---------- Imp. Flight Unit | 99% | -9/Materials | Broken Studied --------- Lgt. Ion Engine | -9/Materials | Hacked Flight Unit | -8/Materials | Hacked VTOL Module | -8/Materials | Hacked Lgt. Nuclear Core | -8/Materials | Hacked Arm. Huge Wheel | -7/Factory | Hacked Remote Datajack | -6/Factory | Hacked Autogun | -6/Factory | Hacked Adv. Remote Datajack | -1/Access | Hacked Enh. Hardcell Cannon | -1/Access | Hacked Alien Tech Used ----------------- Transdimensional Reconstructor Achievements -------------- None Challenges ------------ None Game ------ Seed SurveybotMassChaingun Manual? 0 Play Time 08:15:43 Cumulative 1522.6 hours Start 2026.07.05 @ 14:17:54 End 2026.07.10 @ 12:12:02 Sessions 11 Manual Loads 0 Difficulty Rogue Special Mode None Game No. 672 Rogue 672 Adventurer 0 Explorer 0 Win Type 1 Total 32 Types 15/7/3/0/1/1/2/2/0/1 Lore% 93 Gallery% 87 Achievement% 75 Wizard Run 0 Options --------- Layout 0 ASCII 0 Keyboard 0 Movement Numpad Keybinds 0 Fullscreen 2 Font 24/Smallcaps Map View 76x50 Zoom Use 0% Tactical HUD 1 Map Filters NONE Filters NONE Steam 1 RUN: d92bfe80-96e0-4fd1-b8c4-df9284d30cf8